Department Family,Entity,Payment Date,Expense Type,Expense Area,Supplier,Transaction Number,Amount,Invoice Description,Postal Code,"Admin, Programme or Capital Expenditure"
Food Standards Agency,Food Standards Agency,24/02/2014,ASD support services,IT Service Delivery,Capita Secure Information Solutions Ltd,93405219,"262,509.38",PO 416395 CORE SERVICE CHARGE JAN 14,SN14 0TW,Admin
Food Standards Agency,Food Standards Agency,24/02/2014,IT Development projects,IT Strategy,Capita Secure Information Solutions Ltd,93406103,"93,952.79",PO 412481 ICT TRAINING,SN14 0TW,Admin
Food Standards Agency,Food Standards Agency,20/02/2014,Rent & management charges - Outside London,Scotland Admin Costs,C N R International UK Ltd,SMH1402011a,"86,875.00","Various accommodation charges - Rent 11/11/13 - 14/05/14, Electricity Aug 13 - Dec 13",AB11 6NJ,Admin
Food Standards Agency,Food Standards Agency,18/02/2014,Project Programme expenditure,Contaminants HoD,C E F A S,8003553,"82,000.00",PO 414123 INVOICE FOR JAN14 ADD JAN MILK SAMPLING,NR33 0HT,Programme
Food Standards Agency,Food Standards Agency,04/02/2014,Rent & management charges - Outside London,Security & Estates,D T Z,47965,"75,790.98",DTZ INV 47965-2013-14 FOSS HOUSE Q3,B4 6AJ,Admin
Food Standards Agency,Food Standards Agency,25/02/2014,Programme Evidence & Research Expenditure,Novel Food Unit,National Institute of Biology,190214,"66,284.00",FOREIGN PAYMENT,SI-1000,Programme
Food Standards Agency,Food Standards Agency,14/02/2014,Building Insurance,Security & Estates,D T Z,372479,"59,285.34",DTZ 372479 - AVH INSURANCE,EC2N 2BQ,Admin
Food Standards Agency,Food Standards Agency,10/02/2014,Legal expenses - Drydens,Scotland Admin Costs,The Scottish Government,6022964,"55,000.00",3rd QuarterLegal Costs for FSA Scotland,EH6 6QQ,Admin
Food Standards Agency,Food Standards Agency,18/02/2014,Project Programme expenditure,Enforcement Policy,Gfk NOP Ltd,8272009907,"55,000.00",PO 416149 DISPLAY RATE SURVEY OF FHRS/FHIS,SE1 9UL,Programme
Food Standards Agency,Food Standards Agency,18/02/2014,Analysis of samples (non Trichinella),Operational Delivery,Food & Environment Research Agency,F0034259,"54,645.00",PO 414140 SAMPLE/SAMPLE KITS,YO41 1LZ,Programme
Food Standards Agency,Food Standards Agency,18/02/2014,Project Programme expenditure,Analysis & Research Branch,Food & Environment Research Agency,F0034321,"50,875.69",PO 414124 FS616030,YO41 1LZ,Programme
Food Standards Agency,Food Standards Agency,24/02/2014,Fixed Assets Additions,Security & Estates,G4s Integrated Services (Uk) Ltd,M15345,"48,268.00",PO 416043 PART INVOICE FOR UPGRADE OF ACCESS CONTROL SYSTEM,S81 7QF,Capital
Food Standards Agency,Food Standards Agency,24/02/2014,Programme Evidence & Research Expenditure,Healthier Eating and Food Standards,Newcastle University,9100054652a,"43,509.00","FS244028, Research (VSTD), Retainer payment",NE1 7RU,Programme
Food Standards Agency,Food Standards Agency,12/02/2014,Project Programme expenditure,Food & Feed Monitoring & Policy,The Highland Council,104346951,"36,573.00",Offical Control Sampling Oct to Dec 13,IV3 5NX,Programme
Food Standards Agency,Food Standards Agency,20/02/2014,Telecomms-data networks & call charges,IT Service Delivery,Vodafone Ltd,UK100120142593,"33,621.08",GSI CONVERGENCE GCF OCT-DEC 2013,MK3 5JP,Admin
Food Standards Agency,Food Standards Agency,10/02/2014,Programme Evidence & Research Expenditure,Contaminants Policy & Strategy Unit,Food & Environment Research Agency,F0034170,"32,214.00",PO 413801 MASS BALANCE STUDY,YO41 1LZ,Programme
Food Standards Agency,Food Standards Agency,18/02/2014,Project Programme expenditure,Microbiological Food Safety Branch,Department Of Health,210378,"32,000.00",PO 416140 FS101071,LS2 7UE,Programme
Food Standards Agency,Food Standards Agency,10/02/2014,Programme Evidence & Research Expenditure,Contaminants Policy & Strategy Unit,University Of Bristol,FMVS1031577,"31,620.00",PO 406722 INVESTIGATION,BS8 1TH,Programme
Food Standards Agency,Food Standards Agency,20/02/2014,Utilities,Security & Estates,E D F Energy,EDF0164,"29,333.00",ENERGY CHARGES - ACCT 12717310 -  1-31 JAN 2014,PL3 5XQ,Admin
Food Standards Agency,Food Standards Agency,12/02/2014,Project Programme expenditure,Strategic stakeholder and Consumer Engagement,Winter & Simpson,136521,"29,044.00",FS411017 Games for school resources,DD2 3QT,Programme
Food Standards Agency,Food Standards Agency,20/02/2014,Programme Evidence & Research Expenditure,Allergens,Imperial College,77073,"28,350.00",PO 412390-FEES  FOR CONSULTANCY SERVICES  ,SW7 2AZ,Programme
Food Standards Agency,Food Standards Agency,14/02/2014,Project Programme expenditure,Operations Local Delivery ,LGC Ltd,50289137,"27,962.24",PO 416200 FA0137 MILESTONES 3 & 4,TW11 0LY,Programme
Food Standards Agency,Food Standards Agency,14/02/2014,Service charges,Security & Estates,G4s Integrated Services (Uk) Ltd,M15626,"26,578.76",G4S MONTHLY CONTRACT CHARGES JANUARY 2014,S81 7QF,Admin
Food Standards Agency,Food Standards Agency,18/02/2014,Project Programme expenditure,Contaminants Policy & Strategy Unit,Food & Environment Research Agency,F0034246,"25,000.00",PO 414565 BANANA CHIPS DRAFT FINAL,YO41 1LZ,Programme
Food Standards Agency,Food Standards Agency,10/02/2014,Fixed Assets Additions,Security & Estates,G4s Integrated Services (Uk) Ltd,M15632,"23,683.00","PO 416043 SECURITY CONTROL IN AVIATION HOUSE 01-31/01/14, ID MFOOD01",S81 7QF,Capital
Food Standards Agency,Food Standards Agency,14/02/2014,Meat inspection equipment/consumables,Operational Delivery,Arco UK Ltd,50104197,"23,604.20",PO 412716 GOODS INVOICED TO 30/09/13,HU1 2SJ,Programme
Food Standards Agency,Food Standards Agency,18/02/2014,ASD support services,Finance Director & Branch,Shared Services Connected Ltd,100000114,"22,787.69",PO 415746 FEB 2014,HP2 7AH,Admin
Food Standards Agency,Food Standards Agency,04/02/2014,Rates/contrib in lieu of rates,Security & Estates,D T Z,47965,"22,111.68",DTZ INV 47965-2013-14 FOSS HOUSE Q3,B4 6AJ,Admin
Food Standards Agency,Food Standards Agency,20/02/2014,Rent & management charges - Outside London,Scotland Admin Costs,C N R International UK Ltd,SMH1402011a,"21,249.00","Various accommodation charges - Rent 11/11/13 - 14/05/14, Electricity Aug 13 - Dec 13",AB11 6NJ,Admin
Food Standards Agency,Food Standards Agency,26/02/2014,Laundry,Operational Delivery,Apparelmaster UK Ltd,52332,"21,117.17",PO 413162 NEW CONTRACT,PR2 9ZD,Programme
Food Standards Agency,Food Standards Agency,14/02/2014,Security,Security & Estates,G4s Integrated Services (Uk) Ltd,M15626,"17,497.76",G4S MONTHLY CONTRACT CHARGES JANUARY 2014,S81 7QF,Admin
Food Standards Agency,Food Standards Agency,20/02/2014,Rent & management charges - Outside London,Scotland Admin Costs,C N R International UK Ltd,SMH1402011a,"17,375.00","Various accommodation charges - Rent 11/11/13 - 14/05/14, Electricity Aug 13 - Dec 13",AB11 6NJ,Admin
Food Standards Agency,Food Standards Agency,06/02/2014,Project Programme expenditure,Delivery,Campden Bri,20075951,"16,800.00",PO 413045 LA INVESTIGATION SKILLS 7-8 JAN 2014,GL55 6LD,Programme
Food Standards Agency,Food Standards Agency,14/02/2014,Service charges,Security & Estates,G4s Integrated Services (Uk) Ltd,M15626,"16,051.21",G4S MONTHLY CONTRACT CHARGES JANUARY 2014,S81 7QF,Admin
Food Standards Agency,Food Standards Agency,14/02/2014,Building Insurance,Security & Estates,D T Z,372479,"13,791.07",DTZ 372479 - AVH INSURANCE,EC2N 2BQ,Admin
Food Standards Agency,Food Standards Agency,18/02/2014,Project Programme expenditure,Analysis & Research Branch,Food & Environment Research Agency,F0034321,"11,680.00",PO 414124 FS616030,YO41 1LZ,Programme
Food Standards Agency,Food Standards Agency,14/02/2014,Project Programme expenditure,Operations Local Delivery ,LGC Ltd,50289137,"11,360.83",PO 416200 FA0137 MILESTONES 3 & 4,TW11 0LY,Programme
Food Standards Agency,Food Standards Agency,06/02/2014,Project Programme expenditure,Delivery,Campden Bri,20075951,"11,000.00",PO 413045 LA INVESTIGATION SKILLS 7-8 JAN 2014,GL55 6LD,Programme
Food Standards Agency,Food Standards Agency,18/02/2014,Analysis of samples (non Trichinella),Operational Delivery,Food & Environment Research Agency,F0034259,"10,929.00",PO 414140 SAMPLE/SAMPLE KITS,YO41 1LZ,Programme
Food Standards Agency,Food Standards Agency,14/02/2014,Project Programme expenditure,Operations Local Delivery ,LGC Ltd,50289137,"10,476.59",PO 416200 FA0137 MILESTONES 3 & 4,TW11 0LY,Programme
Food Standards Agency,Food Standards Agency,24/02/2014,Fixed Assets Additions,Security & Estates,G4s Integrated Services (Uk) Ltd,M15345,"9,653.60",PO 416043 PART INVOICE FOR UPGRADE OF ACCESS CONTROL SYSTEM,S81 7QF,Capital
Food Standards Agency,Food Standards Agency,14/02/2014,Project Programme expenditure,Operations Local Delivery ,LGC Ltd,50289137,"9,522.64",PO 416200 FA0137 MILESTONES 3 & 4,TW11 0LY,Programme
Food Standards Agency,Food Standards Agency,14/02/2014,Service charges,Security & Estates,G4s Integrated Services (Uk) Ltd,M15626,"9,004.66",G4S MONTHLY CONTRACT CHARGES JANUARY 2014,S81 7QF,Admin
Food Standards Agency,Food Standards Agency,14/02/2014,Project Programme expenditure,Operations Local Delivery ,LGC Ltd,50289137,"8,720.70",PO 416200 FA0137 MILESTONES 3 & 4,TW11 0LY,Programme
Food Standards Agency,Food Standards Agency,20/02/2014,Utilities,Scotland Admin Costs,C N R International UK Ltd,SMH1402011a,"7,851.70","Various accommodation charges - Rent 11/11/13 - 14/05/14, Electricity Aug 13 - Dec 13",AB11 6NJ,Admin
Food Standards Agency,Food Standards Agency,04/02/2014,Utilities,Security & Estates,D T Z,47965,"7,513.44",DTZ INV 47965-2013-14 FOSS HOUSE Q3,B4 6AJ,Admin
Food Standards Agency,Food Standards Agency,06/02/2014,Project Programme expenditure,Delivery,Campden Bri,20075951,"7,435.00",PO 413045 LA INVESTIGATION SKILLS 7-8 JAN 2014,GL55 6LD,Programme
Food Standards Agency,Food Standards Agency,20/02/2014,Telecomms-data networks & call charges,IT Service Delivery,Vodafone Ltd,UK100120142593,"6,724.22",GSI CONVERGENCE GCF OCT-DEC 2013,MK3 5JP,Admin
Food Standards Agency,Food Standards Agency,20/02/2014,Utilities,Security & Estates,E D F Energy,EDF0164,"5,866.60",ENERGY CHARGES - ACCT 12717310 -  1-31 JAN 2014,PL3 5XQ,Admin
Food Standards Agency,Food Standards Agency,14/02/2014,Project Programme expenditure,Operations Local Delivery ,LGC Ltd,50289137,"5,592.45",PO 416200 FA0137 MILESTONES 3 & 4,TW11 0LY,Programme
Food Standards Agency,Food Standards Agency,06/02/2014,Project Programme expenditure,Delivery,Campden Bri,20075951,"5,125.00",PO 413045 LA INVESTIGATION SKILLS 7-8 JAN 2014,GL55 6LD,Programme
Food Standards Agency,Food Standards Agency,18/02/2014,Project Programme expenditure,Contaminants Policy & Strategy Unit,Food & Environment Research Agency,F0034246,"5,000.00",PO 414565 BANANA CHIPS DRAFT FINAL,YO41 1LZ,Programme
Food Standards Agency,Food Standards Agency,14/02/2014,Building Insurance,Security & Estates,D T Z,372479,"4,900.00",DTZ 372479 - AVH INSURANCE,EC2N 2BQ,Admin
Food Standards Agency,Food Standards Agency,14/02/2014,Building Insurance,Security & Estates,D T Z,372479,"4,770.00",DTZ 372479 - AVH INSURANCE,EC2N 2BQ,Admin
Food Standards Agency,Food Standards Agency,10/02/2014,Fixed Assets Additions,Security & Estates,G4s Integrated Services (Uk) Ltd,M15632,"4,736.60","PO 416043 UPGRADE OF ACCESS CONTROL IN AVAIATION HOUSE 01-31/01/14, ID MFOOD01",S81 7QF,Capital
Food Standards Agency,Food Standards Agency,14/02/2014,Meat inspection equipment/consumables,Operational Delivery,Arco UK Ltd,50104197,"4,720.84",PO 412716 GOODS INVOICED TO 30/09/13,HU1 2SJ,Programme
Food Standards Agency,Food Standards Agency,20/02/2014,Rent & management charges - Outside London,Scotland Admin Costs,C N R International UK Ltd,SMH1402011a,"4,249.80","Various accommodation charges - Rent 11/11/13 - 14/05/14, Electricity Aug 13 - Dec 13",AB11 6NJ,Admin
Food Standards Agency,Food Standards Agency,06/02/2014,Project Programme expenditure,Delivery,Campden Bri,20075951,"3,963.00",PO 413045 LA INVESTIGATION SKILLS 7-8 JAN 2014,GL55 6LD,Programme
Food Standards Agency,Food Standards Agency,14/02/2014,Security,Security & Estates,G4s Integrated Services (Uk) Ltd,M15626,"3,499.55",G4S MONTHLY CONTRACT CHARGES JANUARY 2014,S81 7QF,Admin
Food Standards Agency,Food Standards Agency,06/02/2014,Project Programme expenditure,Delivery,Campden Bri,20075951,"3,300.00",PO 413045 LA INVESTIGATION SKILLS 7-8 JAN 2014,GL55 6LD,Programme
Food Standards Agency,Food Standards Agency,06/02/2014,Project Programme expenditure,Delivery,Campden Bri,20075951,"3,200.00",PO 413045 LA INVESTIGATION SKILLS 7-8 JAN 2014,GL55 6LD,Programme
Food Standards Agency,Food Standards Agency,12/02/2014,Subsistence UK,Operations Assurance,Redfern Travel Ltd,72906,"3,159.09",REDFERN TRAVEL INVOICE,BD1 3AZ,Programme
Food Standards Agency,Food Standards Agency,28/02/2014,Travel UK ,Operational Delivery,Redfern Travel Ltd,74261,"2,850.33",REDFERN TRAVEL INVOICE,BD1 3AZ,Programme
Food Standards Agency,Food Standards Agency,12/02/2014,Travel UK ,Operational Delivery,Redfern Travel Ltd,72906,"2,749.34",REDFERN TRAVEL INVOICE,BD1 3AZ,Programme
Food Standards Agency,Food Standards Agency,24/02/2014,Travel UK ,Operational Delivery,Redfern Travel Ltd,73741,"2,722.36",REDFERN TRAVEL INVOICE,BD1 3AZ,Programme
Food Standards Agency,Food Standards Agency,24/02/2014,Travel UK ,Operational Delivery,Redfern Travel Ltd,73934,"2,478.32",REDFERN TRAVEL INVOICE,BD1 3AZ,Programme
Food Standards Agency,Food Standards Agency,14/02/2014,Service charges,Security & Estates,G4s Integrated Services (Uk) Ltd,M15626,"2,393.34",G4S MONTHLY CONTRACT CHARGES JANUARY 2014,S81 7QF,Admin
Food Standards Agency,Food Standards Agency,06/02/2014,Project Programme expenditure,Delivery,Campden Bri,20075951,"2,307.00",PO 413045 LA INVESTIGATION SKILLS 7-8 JAN 2014,GL55 6LD,Programme
Food Standards Agency,Food Standards Agency,14/02/2014,Project Programme expenditure,Operations Local Delivery ,LGC Ltd,50289137,"2,272.17",PO 416200 FA0137 MILESTONES 3 & 4,TW11 0LY,Programme
Food Standards Agency,Food Standards Agency,28/02/2014,Travel UK ,Planning and Performance,Redfern Travel Ltd,74261,"2,256.69",REDFERN TRAVEL INVOICE,BD1 3AZ,Admin
Food Standards Agency,Food Standards Agency,24/02/2014,Travel UK ,Operations Assurance,Redfern Travel Ltd,73741,"2,165.95",REDFERN TRAVEL INVOICE,BD1 3AZ,Programme
Food Standards Agency,Food Standards Agency,14/02/2014,Project Programme expenditure,Operations Local Delivery ,LGC Ltd,50289137,"2,095.32",PO 416200 FA0137 MILESTONES 3 & 4,TW11 0LY,Programme
Food Standards Agency,Food Standards Agency,28/02/2014,Travel UK ,Operations Assurance,Redfern Travel Ltd,74261,"2,067.12",REDFERN TRAVEL INVOICE,BD1 3AZ,Programme
Food Standards Agency,Food Standards Agency,24/02/2014,Travel UK ,Operations Local Delivery ,Redfern Travel Ltd,73741,"1,915.84",REDFERN TRAVEL INVOICE,BD1 3AZ,Admin
Food Standards Agency,Food Standards Agency,14/02/2014,Project Programme expenditure,Operations Local Delivery ,LGC Ltd,50289137,"1,904.53",PO 416200 FA0137 MILESTONES 3 & 4,TW11 0LY,Programme
Food Standards Agency,Food Standards Agency,04/02/2014,Travel UK ,Operational Delivery,Redfern Travel Ltd,72718,"1,821.50",REDFERN TRAVEL INVOICE,BD1 3AZ,Programme
Food Standards Agency,Food Standards Agency,24/02/2014,Travel UK ,Planning and Performance,Redfern Travel Ltd,73741,"1,752.34",REDFERN TRAVEL INVOICE,BD1 3AZ,Admin
Food Standards Agency,Food Standards Agency,14/02/2014,Project Programme expenditure,Operations Local Delivery ,LGC Ltd,50289137,"1,744.14",PO 416200 FA0137 MILESTONES 3 & 4,TW11 0LY,Programme
Food Standards Agency,Food Standards Agency,24/02/2014,Travel UK ,Comms Directors Office,Redfern Travel Ltd,73934,"1,642.08",REDFERN TRAVEL INVOICE,BD1 3AZ,Admin
Food Standards Agency,Food Standards Agency,04/02/2014,Travel UK ,Planning and Performance,Redfern Travel Ltd,72718,"1,618.21",REDFERN TRAVEL INVOICE,BD1 3AZ,Admin
Food Standards Agency,Food Standards Agency,20/02/2014,Utilities,Scotland Admin Costs,C N R International UK Ltd,SMH1402011a,"1,570.34","Various accommodation charges - Rent 11/11/13 - 14/05/14, Electricity Aug 13 - Dec 13",AB11 6NJ,Admin
Food Standards Agency,Food Standards Agency,28/02/2014,Travel UK ,Area 2 Wales - Cluster 21,Redfern Travel Ltd,74261,"1,542.61",REDFERN TRAVEL INVOICE,BD1 3AZ,Programme
Food Standards Agency,Food Standards Agency,04/02/2014,Subsistence UK,Operations Assurance,Redfern Travel Ltd,72718,"1,540.92",REDFERN TRAVEL INVOICE,BD1 3AZ,Programme
Food Standards Agency,Food Standards Agency,24/02/2014,Travel UK ,HR,Redfern Travel Ltd,73741,"1,527.16",REDFERN TRAVEL INVOICE,BD1 3AZ,Admin
Food Standards Agency,Food Standards Agency,12/02/2014,Subsistence UK,Novel Food Unit,Redfern Travel Ltd,72906,"1,506.74",REDFERN TRAVEL INVOICE,BD1 3AZ,Admin
Food Standards Agency,Food Standards Agency,24/02/2014,Travel UK ,Finance Director & Branch,Redfern Travel Ltd,73741,"1,433.20",REDFERN TRAVEL INVOICE,BD1 3AZ,Admin
Food Standards Agency,Food Standards Agency,12/02/2014,Travel UK ,Finance Director & Branch,Redfern Travel Ltd,72906,"1,418.77",REDFERN TRAVEL INVOICE,BD1 3AZ,Admin
Food Standards Agency,Food Standards Agency,18/02/2014,Project Programme expenditure,Contaminants HoD,C E F A S,8003553,"1,372.65",PO 414123 INVOICE FOR JAN14 ADD JAN MILK SAMPLING,NR33 0HT,Programme
Food Standards Agency,Food Standards Agency,28/02/2014,Travel UK ,Chair & Deputy Chair,Redfern Travel Ltd,74261,"1,345.07",REDFERN TRAVEL INVOICE,BD1 3AZ,Admin
Food Standards Agency,Food Standards Agency,04/02/2014,Travel UK ,Operations Assurance,Redfern Travel Ltd,72718,"1,276.09",REDFERN TRAVEL INVOICE,BD1 3AZ,Programme
Food Standards Agency,Food Standards Agency,12/02/2014,Travel UK ,Planning and Performance,Redfern Travel Ltd,72906,"1,211.98",REDFERN TRAVEL INVOICE,BD1 3AZ,Admin
Food Standards Agency,Food Standards Agency,12/02/2014,Subsistence UK,Operational Delivery,Redfern Travel Ltd,72906,"1,109.12",REDFERN TRAVEL INVOICE,BD1 3AZ,Programme
Food Standards Agency,Food Standards Agency,12/02/2014,Travel UK ,FSA Board,Redfern Travel Ltd,72906,"1,091.43",REDFERN TRAVEL INVOICE,BD1 3AZ,Admin
Food Standards Agency,Food Standards Agency,12/02/2014,Travel UK ,Area 1 Scotland - Cluster 13,Redfern Travel Ltd,72906,"1,086.45",REDFERN TRAVEL INVOICE,BD1 3AZ,Programme
Food Standards Agency,Food Standards Agency,24/02/2014,Travel UK ,Consumer Protection & Commercial Support,Redfern Travel Ltd,73934,"1,077.17",REDFERN TRAVEL INVOICE,BD1 3AZ,Admin
Food Standards Agency,Food Standards Agency,04/02/2014,Travel UK ,HR,Redfern Travel Ltd,72718,"1,046.35",REDFERN TRAVEL INVOICE,BD1 3AZ,Admin
Food Standards Agency,Food Standards Agency,24/02/2014,Travel UK ,Finance Director & Branch,Redfern Travel Ltd,73934,"1,025.01",REDFERN TRAVEL INVOICE,BD1 3AZ,Admin
Food Standards Agency,Food Standards Agency,28/02/2014,Travel UK ,Operations Local Delivery ,Redfern Travel Ltd,74261,"1,001.17",REDFERN TRAVEL INVOICE,BD1 3AZ,Admin
Food Standards Agency,Food Standards Agency,12/02/2014,Travel UK ,Area 6 South East England - Cluster 63,Redfern Travel Ltd,72906,994.62,REDFERN TRAVEL INVOICE,BD1 3AZ,Programme
Food Standards Agency,Food Standards Agency,24/02/2014,Travel UK ,Contaminants Policy & Strategy Unit,Redfern Travel Ltd,73741,991.21,REDFERN TRAVEL INVOICE,BD1 3AZ,Admin
Food Standards Agency,Food Standards Agency,28/02/2014,Subsistence UK,Animal Feed     ,Redfern Travel Ltd,74261,881.84,REDFERN TRAVEL INVOICE,BD1 3AZ,Admin
Food Standards Agency,Food Standards Agency,24/02/2014,Subsistence UK,Planning and Performance,Redfern Travel Ltd,73934,880.19,REDFERN TRAVEL INVOICE,BD1 3AZ,Admin
Food Standards Agency,Food Standards Agency,04/02/2014,Travel UK ,Animal Feed     ,Redfern Travel Ltd,72718,873.90,REDFERN TRAVEL INVOICE,BD1 3AZ,Admin
Food Standards Agency,Food Standards Agency,24/02/2014,Subsistence UK,Operations Assurance - Admin,Redfern Travel Ltd,73934,846.93,REDFERN TRAVEL INVOICE,BD1 3AZ,Admin
Food Standards Agency,Food Standards Agency,04/02/2014,Travel UK ,Area 3 North West England - Cluster 35,Redfern Travel Ltd,72718,819.94,REDFERN TRAVEL INVOICE,BD1 3AZ,Programme
Food Standards Agency,Food Standards Agency,04/02/2014,Travel UK ,Finance Director & Branch,Redfern Travel Ltd,72718,802.27,REDFERN TRAVEL INVOICE,BD1 3AZ,Admin
Food Standards Agency,Food Standards Agency,04/02/2014,Travel UK ,Consumer Protection & Commercial Support,Redfern Travel Ltd,72718,797.22,REDFERN TRAVEL INVOICE,BD1 3AZ,Admin
Food Standards Agency,Food Standards Agency,24/02/2014,Travel UK ,Consumer Protection & Commercial Support,Redfern Travel Ltd,73741,795.49,REDFERN TRAVEL INVOICE,BD1 3AZ,Admin
Food Standards Agency,Food Standards Agency,28/02/2014,Subsistence UK,Operational Delivery,Redfern Travel Ltd,74261,771.32,REDFERN TRAVEL INVOICE,BD1 3AZ,Programme
Food Standards Agency,Food Standards Agency,12/02/2014,Travel UK ,Operations Assurance - Admin,Redfern Travel Ltd,72906,771.13,REDFERN TRAVEL INVOICE,BD1 3AZ,Admin
Food Standards Agency,Food Standards Agency,24/02/2014,Subsistence UK,Animal Feed     ,Redfern Travel Ltd,73934,752.06,REDFERN TRAVEL INVOICE,BD1 3AZ,Admin
Food Standards Agency,Food Standards Agency,24/02/2014,Travel UK ,Operations Assurance - Admin,Redfern Travel Ltd,73934,751.99,REDFERN TRAVEL INVOICE,BD1 3AZ,Admin
Food Standards Agency,Food Standards Agency,24/02/2014,Subsistence UK,Chief Executive & Private Office,Redfern Travel Ltd,73741,746.64,REDFERN TRAVEL INVOICE,BD1 3AZ,Admin
Food Standards Agency,Food Standards Agency,28/02/2014,Subsistence UK,Operations Assurance,Redfern Travel Ltd,74261,743.32,REDFERN TRAVEL INVOICE,BD1 3AZ,Programme
Food Standards Agency,Food Standards Agency,04/02/2014,Subsistence UK,Procurement,Redfern Travel Ltd,72718,733.87,REDFERN TRAVEL INVOICE,BD1 3AZ,Admin
Food Standards Agency,Food Standards Agency,04/02/2014,Subsistence UK,Operational Delivery,Redfern Travel Ltd,72718,731.41,REDFERN TRAVEL INVOICE,BD1 3AZ,Programme
Food Standards Agency,Food Standards Agency,12/02/2014,Travel UK ,Operations Local Delivery ,Redfern Travel Ltd,72906,729.89,REDFERN TRAVEL INVOICE,BD1 3AZ,Admin
Food Standards Agency,Food Standards Agency,28/02/2014,Subsistence UK,Chief Executive & Private Office,Redfern Travel Ltd,74261,722.68,REDFERN TRAVEL INVOICE,BD1 3AZ,Admin
Food Standards Agency,Food Standards Agency,12/02/2014,Subsistence UK,Area 6 South East England - Cluster 63,Redfern Travel Ltd,72906,717.12,REDFERN TRAVEL INVOICE,BD1 3AZ,Programme
Food Standards Agency,Food Standards Agency,24/02/2014,Travel UK ,Operations Local Delivery ,Redfern Travel Ltd,73934,715.11,REDFERN TRAVEL INVOICE,BD1 3AZ,Admin
Food Standards Agency,Food Standards Agency,12/02/2014,Subsistence UK,Animal Feed     ,Redfern Travel Ltd,72906,699.54,REDFERN TRAVEL INVOICE,BD1 3AZ,Admin
Food Standards Agency,Food Standards Agency,24/02/2014,Travel UK ,Comms Directors Office,Redfern Travel Ltd,73741,691.75,REDFERN TRAVEL INVOICE,BD1 3AZ,Admin
Food Standards Agency,Food Standards Agency,28/02/2014,Travel UK ,Finance Director & Branch,Redfern Travel Ltd,74261,687.06,REDFERN TRAVEL INVOICE,BD1 3AZ,Admin
Food Standards Agency,Food Standards Agency,28/02/2014,Travel UK ,Comms Directors Office,Redfern Travel Ltd,74261,674.09,REDFERN TRAVEL INVOICE,BD1 3AZ,Admin
Food Standards Agency,Food Standards Agency,24/02/2014,Travel UK ,HR,Redfern Travel Ltd,73934,640.50,REDFERN TRAVEL INVOICE,BD1 3AZ,Admin
Food Standards Agency,Food Standards Agency,04/02/2014,Subsistence UK,Finance Director & Branch,Redfern Travel Ltd,72718,634.65,REDFERN TRAVEL INVOICE,BD1 3AZ,Admin
Food Standards Agency,Food Standards Agency,04/02/2014,Travel UK ,Procurement,Redfern Travel Ltd,72718,633.20,REDFERN TRAVEL INVOICE,BD1 3AZ,Admin
Food Standards Agency,Food Standards Agency,24/02/2014,Subsistence UK,Operations Assurance,Redfern Travel Ltd,73934,632.58,REDFERN TRAVEL INVOICE,BD1 3AZ,Programme
Food Standards Agency,Food Standards Agency,04/02/2014,Subsistence UK,Chief Executive & Private Office,Redfern Travel Ltd,72718,622.51,REDFERN TRAVEL INVOICE,BD1 3AZ,Admin
Food Standards Agency,Food Standards Agency,24/02/2014,Travel UK ,Area 6 South East England - Cluster 63,Redfern Travel Ltd,73741,613.99,REDFERN TRAVEL INVOICE,BD1 3AZ,Programme
Food Standards Agency,Food Standards Agency,04/02/2014,Travel UK ,IT HoD,Redfern Travel Ltd,72718,612.08,REDFERN TRAVEL INVOICE,BD1 3AZ,Admin
Food Standards Agency,Food Standards Agency,28/02/2014,Travel UK ,HR,Redfern Travel Ltd,74261,602.57,REDFERN TRAVEL INVOICE,BD1 3AZ,Admin
Food Standards Agency,Food Standards Agency,24/02/2014,Subsistence UK,Animal Feed     ,Redfern Travel Ltd,73741,600.00,REDFERN TRAVEL INVOICE,BD1 3AZ,Admin
Food Standards Agency,Food Standards Agency,24/02/2014,Subsistence UK,Operational Delivery,Redfern Travel Ltd,73741,597.80,REDFERN TRAVEL INVOICE,BD1 3AZ,Programme
Food Standards Agency,Food Standards Agency,04/02/2014,Travel UK ,Legal Branch A,Redfern Travel Ltd,72718,588.49,REDFERN TRAVEL INVOICE,BD1 3AZ,Admin
Food Standards Agency,Food Standards Agency,24/02/2014,Travel UK ,Procurement,Redfern Travel Ltd,73741,588.10,REDFERN TRAVEL INVOICE,BD1 3AZ,Admin
Food Standards Agency,Food Standards Agency,24/02/2014,Travel UK ,Animal Feed Branch,Redfern Travel Ltd,73934,568.12,REDFERN TRAVEL INVOICE,BD1 3AZ,Admin
Food Standards Agency,Food Standards Agency,24/02/2014,Travel UK ,Procurement,Redfern Travel Ltd,73934,562.77,REDFERN TRAVEL INVOICE,BD1 3AZ,Admin
Food Standards Agency,Food Standards Agency,24/02/2014,Travel UK ,Internal Audit,Redfern Travel Ltd,73741,560.57,REDFERN TRAVEL INVOICE,BD1 3AZ,Admin
Food Standards Agency,Food Standards Agency,24/02/2014,Travel UK ,Contaminants Policy & Strategy Unit,Redfern Travel Ltd,73934,556.62,REDFERN TRAVEL INVOICE,BD1 3AZ,Admin
Food Standards Agency,Food Standards Agency,24/02/2014,Travel UK ,Area 6 South East England - Cluster 62,Redfern Travel Ltd,73934,553.86,REDFERN TRAVEL INVOICE,BD1 3AZ,Programme
Food Standards Agency,Food Standards Agency,28/02/2014,Travel UK ,Non Meat Field Ops,Redfern Travel Ltd,74261,553.66,REDFERN TRAVEL INVOICE,BD1 3AZ,Programme
Food Standards Agency,Food Standards Agency,24/02/2014,Travel UK ,Operations Assurance - Admin,Redfern Travel Ltd,73741,551.58,REDFERN TRAVEL INVOICE,BD1 3AZ,Admin
Food Standards Agency,Food Standards Agency,12/02/2014,Travel UK ,HR,Redfern Travel Ltd,72906,545.69,REDFERN TRAVEL INVOICE,BD1 3AZ,Admin
Food Standards Agency,Food Standards Agency,12/02/2014,Travel UK ,Chair & Deputy Chair,Redfern Travel Ltd,72906,541.76,REDFERN TRAVEL INVOICE,BD1 3AZ,Admin
Food Standards Agency,Food Standards Agency,04/02/2014,Travel UK ,Area 6 South East England - Cluster 65,Redfern Travel Ltd,72718,536.61,REDFERN TRAVEL INVOICE,BD1 3AZ,Programme
Food Standards Agency,Food Standards Agency,04/02/2014,Travel UK ,Operations Local Delivery ,Redfern Travel Ltd,72718,533.78,REDFERN TRAVEL INVOICE,BD1 3AZ,Admin
Food Standards Agency,Food Standards Agency,24/02/2014,Subsistence UK,Operations Assurance,Redfern Travel Ltd,73741,527.56,REDFERN TRAVEL INVOICE,BD1 3AZ,Programme
Food Standards Agency,Food Standards Agency,24/02/2014,Travel UK ,Food Production Branch,Redfern Travel Ltd,73934,523.55,REDFERN TRAVEL INVOICE,BD1 3AZ,Admin
Food Standards Agency,Food Standards Agency,04/02/2014,Travel UK ,Comms Directors Office,Redfern Travel Ltd,72718,522.04,REDFERN TRAVEL INVOICE,BD1 3AZ,Admin
Food Standards Agency,Food Standards Agency,24/02/2014,Travel UK ,Area 6 South East England - Cluster 63,Redfern Travel Ltd,73934,507.69,REDFERN TRAVEL INVOICE,BD1 3AZ,Programme
Food Standards Agency,Food Standards Agency,24/02/2014,Subsistence UK,Novel Food Unit,Redfern Travel Ltd,73934,501.56,REDFERN TRAVEL INVOICE,BD1 3AZ,Admin
Food Standards Agency,Food Standards Agency,14/02/2014,Office machinery: hire,Security & Estates,G4s Integrated Services (Uk) Ltd,M15626,500.00,G4S MONTHLY CONTRACT CHARGES JANUARY 2014,S81 7QF,Admin
Food Standards Agency,Food Standards Agency,12/02/2014,Subsistence UK,Chief Executive & Private Office,Redfern Travel Ltd,72906,497.52,REDFERN TRAVEL INVOICE,BD1 3AZ,Admin
Food Standards Agency,Food Standards Agency,12/02/2014,Subsistence UK,Investigations,Redfern Travel Ltd,72906,475.33,REDFERN TRAVEL INVOICE,BD1 3AZ,Admin
Food Standards Agency,Food Standards Agency,28/02/2014,Travel UK ,Animal Feed     ,Redfern Travel Ltd,74261,473.64,REDFERN TRAVEL INVOICE,BD1 3AZ,Admin
Food Standards Agency,Food Standards Agency,28/02/2014,International Travel,Additives,Redfern Travel Ltd,74261,472.70,REDFERN TRAVEL INVOICE,BD1 3AZ,Admin
Food Standards Agency,Food Standards Agency,28/02/2014,Travel UK ,Procurement,Redfern Travel Ltd,74261,471.79,REDFERN TRAVEL INVOICE,BD1 3AZ,Admin
Food Standards Agency,Food Standards Agency,24/02/2014,Subsistence UK,Area 6 South East England - Cluster 63,Redfern Travel Ltd,73934,469.88,REDFERN TRAVEL INVOICE,BD1 3AZ,Programme
Food Standards Agency,Food Standards Agency,12/02/2014,Subsistence UK,Planning and Performance,Redfern Travel Ltd,72907,466.30,REDFERN TRAVEL INVOICE,BD1 3AZ,Admin
Food Standards Agency,Food Standards Agency,28/02/2014,Travel UK ,Area 5 South West England - Cluster 57,Redfern Travel Ltd,74261,464.16,REDFERN TRAVEL INVOICE,BD1 3AZ,Programme
Food Standards Agency,Food Standards Agency,24/02/2014,Subsistence UK,Operational Delivery,Redfern Travel Ltd,73934,461.53,REDFERN TRAVEL INVOICE,BD1 3AZ,Programme
Food Standards Agency,Food Standards Agency,28/02/2014,Subsistence UK,Operations Assurance - Admin,Redfern Travel Ltd,74261,453.54,REDFERN TRAVEL INVOICE,BD1 3AZ,Admin
Food Standards Agency,Food Standards Agency,24/02/2014,International Travel,Food Hygiene Policy Branch,Redfern Travel Ltd,73934,449.90,REDFERN TRAVEL INVOICE,BD1 3AZ,Admin
Food Standards Agency,Food Standards Agency,04/02/2014,Travel UK ,Area 5 South West England - Cluster 55,Redfern Travel Ltd,72718,448.69,REDFERN TRAVEL INVOICE,BD1 3AZ,Programme
Food Standards Agency,Food Standards Agency,24/02/2014,Subsistence - EC,Operations Local Delivery ,Redfern Travel Ltd,73741,445.02,REDFERN TRAVEL INVOICE,BD1 3AZ,Admin
Food Standards Agency,Food Standards Agency,24/02/2014,Travel UK ,Animal Feed Branch,Redfern Travel Ltd,73741,442.80,REDFERN TRAVEL INVOICE,BD1 3AZ,Admin
Food Standards Agency,Food Standards Agency,12/02/2014,Travel UK ,Investigations,Redfern Travel Ltd,72906,442.26,REDFERN TRAVEL INVOICE,BD1 3AZ,Admin
Food Standards Agency,Food Standards Agency,04/02/2014,Subsistence UK,Comms Directors Office,Redfern Travel Ltd,72718,432.33,REDFERN TRAVEL INVOICE,BD1 3AZ,Admin
Food Standards Agency,Food Standards Agency,24/02/2014,Subsistence - EC,Contaminants Policy & Strategy Unit,Redfern Travel Ltd,73934,432.30,REDFERN TRAVEL INVOICE,BD1 3AZ,Admin
Food Standards Agency,Food Standards Agency,12/02/2014,Travel UK ,Area 6 South East England - Cluster 65,Redfern Travel Ltd,72906,419.84,REDFERN TRAVEL INVOICE,BD1 3AZ,Programme
Food Standards Agency,Food Standards Agency,12/02/2014,Travel UK ,Microbiological Food Safety Branch,Redfern Travel Ltd,72906,415.12,REDFERN TRAVEL INVOICE,BD1 3AZ,Admin
Food Standards Agency,Food Standards Agency,24/02/2014,Subsistence UK,Legal Branch A,Redfern Travel Ltd,73934,412.31,REDFERN TRAVEL INVOICE,BD1 3AZ,Admin
Food Standards Agency,Food Standards Agency,24/02/2014,Subsistence - EC,Chemical Risk Assessment Unit,Redfern Travel Ltd,73741,407.93,REDFERN TRAVEL INVOICE,BD1 3AZ,Admin
Food Standards Agency,Food Standards Agency,24/02/2014,Travel UK ,Operations Assurance,Redfern Travel Ltd,73934,399.79,REDFERN TRAVEL INVOICE,BD1 3AZ,Programme
Food Standards Agency,Food Standards Agency,24/02/2014,Travel UK ,Area 1 Scotland - Cluster 15,Redfern Travel Ltd,73741,399.67,REDFERN TRAVEL INVOICE,BD1 3AZ,Programme
Food Standards Agency,Food Standards Agency,28/02/2014,Travel UK ,Operations Assurance - Admin,Redfern Travel Ltd,74261,394.63,REDFERN TRAVEL INVOICE,BD1 3AZ,Admin
Food Standards Agency,Food Standards Agency,12/02/2014,Travel UK ,Area 4 North East England - Cluster 43,Redfern Travel Ltd,72906,390.65,REDFERN TRAVEL INVOICE,BD1 3AZ,Programme
Food Standards Agency,Food Standards Agency,28/02/2014,Travel UK ,IT Information & Knowledge Management,Redfern Travel Ltd,74261,387.38,REDFERN TRAVEL INVOICE,BD1 3AZ,Admin
Food Standards Agency,Food Standards Agency,28/02/2014,International Travel,Analysis & Research Branch,Redfern Travel Ltd,74261,381.80,REDFERN TRAVEL INVOICE,BD1 3AZ,Admin
Food Standards Agency,Food Standards Agency,04/02/2014,Travel UK ,Operations Assurance - Admin,Redfern Travel Ltd,72718,378.48,REDFERN TRAVEL INVOICE,BD1 3AZ,Admin
Food Standards Agency,Food Standards Agency,04/02/2014,Subsistence UK,HR,Redfern Travel Ltd,72718,378.11,REDFERN TRAVEL INVOICE,BD1 3AZ,Admin
Food Standards Agency,Food Standards Agency,24/02/2014,Travel UK ,Area 4 North East England - Cluster 48,Redfern Travel Ltd,73741,368.68,REDFERN TRAVEL INVOICE,BD1 3AZ,Programme
Food Standards Agency,Food Standards Agency,24/02/2014,Subsistence UK,Chief Executive & Private Office,Redfern Travel Ltd,73934,367.62,REDFERN TRAVEL INVOICE,BD1 3AZ,Admin
Food Standards Agency,Food Standards Agency,04/02/2014,Travel UK ,Area 5 South West England - Cluster 52,Redfern Travel Ltd,72718,365.83,REDFERN TRAVEL INVOICE,BD1 3AZ,Programme
Food Standards Agency,Food Standards Agency,04/02/2014,Travel UK ,Investigations,Redfern Travel Ltd,72718,364.77,REDFERN TRAVEL INVOICE,BD1 3AZ,Admin
Food Standards Agency,Food Standards Agency,24/02/2014,Travel UK ,Non Meat Field Ops,Redfern Travel Ltd,73934,364.74,REDFERN TRAVEL INVOICE,BD1 3AZ,Programme
Food Standards Agency,Food Standards Agency,12/02/2014,Travel UK ,Directorate Support Unit,Redfern Travel Ltd,72906,363.57,REDFERN TRAVEL INVOICE,BD1 3AZ,Admin
Food Standards Agency,Food Standards Agency,24/02/2014,Travel UK ,Animal Feed     ,Redfern Travel Ltd,73741,362.97,REDFERN TRAVEL INVOICE,BD1 3AZ,Admin
Food Standards Agency,Food Standards Agency,04/02/2014,Travel UK ,Area 2 Wales - Cluster 23,Redfern Travel Ltd,72718,360.58,REDFERN TRAVEL INVOICE,BD1 3AZ,Programme
Food Standards Agency,Food Standards Agency,04/02/2014,Subsistence UK,Operations Local Delivery ,Redfern Travel Ltd,72718,360.23,REDFERN TRAVEL INVOICE,BD1 3AZ,Admin
Food Standards Agency,Food Standards Agency,24/02/2014,Subsistence UK,Comms Directors Office,Redfern Travel Ltd,73934,358.33,REDFERN TRAVEL INVOICE,BD1 3AZ,Admin
Food Standards Agency,Food Standards Agency,24/02/2014,Subsistence UK,Chief Scientist,Redfern Travel Ltd,73741,353.83,REDFERN TRAVEL INVOICE,BD1 3AZ,Admin
Food Standards Agency,Food Standards Agency,12/02/2014,Travel UK ,Area 5 South West England - Cluster 51,Redfern Travel Ltd,72906,352.00,REDFERN TRAVEL INVOICE,BD1 3AZ,Programme
Food Standards Agency,Food Standards Agency,04/02/2014,Subsistence UK,Area 5 South West England - Cluster 57,Redfern Travel Ltd,72718,350.10,REDFERN TRAVEL INVOICE,BD1 3AZ,Programme
Food Standards Agency,Food Standards Agency,24/02/2014,Travel UK ,Planning and Performance,Redfern Travel Ltd,73934,349.17,REDFERN TRAVEL INVOICE,BD1 3AZ,Admin
Food Standards Agency,Food Standards Agency,28/02/2014,Travel UK ,Analysis & Research Branch,Redfern Travel Ltd,74261,347.72,REDFERN TRAVEL INVOICE,BD1 3AZ,Admin
Food Standards Agency,Food Standards Agency,28/02/2014,Travel UK ,Area 3 North West England - Cluster 36,Redfern Travel Ltd,74261,347.69,REDFERN TRAVEL INVOICE,BD1 3AZ,Programme
Food Standards Agency,Food Standards Agency,24/02/2014,Travel UK ,Analysis & Research Branch,Redfern Travel Ltd,73741,347.21,REDFERN TRAVEL INVOICE,BD1 3AZ,Admin
Food Standards Agency,Food Standards Agency,12/02/2014,International Travel,FSA Board,Redfern Travel Ltd,72906,342.48,REDFERN TRAVEL INVOICE,BD1 3AZ,Admin
Food Standards Agency,Food Standards Agency,04/02/2014,Subsistence UK,Area 6 South East England - Cluster 63,Redfern Travel Ltd,72718,333.68,REDFERN TRAVEL INVOICE,BD1 3AZ,Programme
Food Standards Agency,Food Standards Agency,12/02/2014,Travel UK ,Area 5 South West England - Cluster 57,Redfern Travel Ltd,72906,330.22,REDFERN TRAVEL INVOICE,BD1 3AZ,Programme
Food Standards Agency,Food Standards Agency,04/02/2014,International Travel,Better Regulations & Sustainable Development,Redfern Travel Ltd,72718,328.89,REDFERN TRAVEL INVOICE,BD1 3AZ,Admin
Food Standards Agency,Food Standards Agency,04/02/2014,Travel UK ,Area 3 North West England - Cluster 36,Redfern Travel Ltd,72718,318.87,REDFERN TRAVEL INVOICE,BD1 3AZ,Programme
Food Standards Agency,Food Standards Agency,28/02/2014,Travel UK ,Area 5 South West England - Cluster 51,Redfern Travel Ltd,74261,317.52,REDFERN TRAVEL INVOICE,BD1 3AZ,Programme
Food Standards Agency,Food Standards Agency,24/02/2014,Travel UK ,Directorate Support Unit,Redfern Travel Ltd,73741,312.16,REDFERN TRAVEL INVOICE,BD1 3AZ,Admin
Food Standards Agency,Food Standards Agency,04/02/2014,Subsistence UK,Non Meat Field Ops,Redfern Travel Ltd,72718,311.98,REDFERN TRAVEL INVOICE,BD1 3AZ,Programme
Food Standards Agency,Food Standards Agency,24/02/2014,Subsistence UK,HR,Redfern Travel Ltd,73741,306.96,REDFERN TRAVEL INVOICE,BD1 3AZ,Admin
Food Standards Agency,Food Standards Agency,12/02/2014,Travel UK ,Food Hygiene Policy Branch,Redfern Travel Ltd,72906,303.82,REDFERN TRAVEL INVOICE,BD1 3AZ,Admin
Food Standards Agency,Food Standards Agency,24/02/2014,Subsistence UK,Legal Branch A,Redfern Travel Ltd,73741,303.16,REDFERN TRAVEL INVOICE,BD1 3AZ,Admin
Food Standards Agency,Food Standards Agency,24/02/2014,Travel UK ,Area 1 Scotland - Cluster 13,Redfern Travel Ltd,73741,302.49,REDFERN TRAVEL INVOICE,BD1 3AZ,Programme
Food Standards Agency,Food Standards Agency,04/02/2014,Travel UK ,Area 6 South East England - Cluster 63,Redfern Travel Ltd,72718,299.56,REDFERN TRAVEL INVOICE,BD1 3AZ,Programme
Food Standards Agency,Food Standards Agency,28/02/2014,Travel UK ,FSA Board,Redfern Travel Ltd,74261,297.28,REDFERN TRAVEL INVOICE,BD1 3AZ,Admin
Food Standards Agency,Food Standards Agency,24/02/2014,Subsistence UK,Area 6 South East England - Cluster 65,Redfern Travel Ltd,73741,297.24,REDFERN TRAVEL INVOICE,BD1 3AZ,Programme
Food Standards Agency,Food Standards Agency,28/02/2014,Travel UK ,Area 5 South West England - Cluster 55,Redfern Travel Ltd,74261,296.03,REDFERN TRAVEL INVOICE,BD1 3AZ,Programme
Food Standards Agency,Food Standards Agency,12/02/2014,International Travel,Chair & Deputy Chair,Redfern Travel Ltd,72906,290.21,REDFERN TRAVEL INVOICE,BD1 3AZ,Admin
Food Standards Agency,Food Standards Agency,24/02/2014,Subsistence UK,Area 6 South East England - Cluster 64,Redfern Travel Ltd,73741,290.16,REDFERN TRAVEL INVOICE,BD1 3AZ,Programme
Food Standards Agency,Food Standards Agency,24/02/2014,International Travel,Allergens,Redfern Travel Ltd,73934,289.90,REDFERN TRAVEL INVOICE,BD1 3AZ,Admin
Food Standards Agency,Food Standards Agency,24/02/2014,Travel UK ,FSA Board,Redfern Travel Ltd,73741,289.70,REDFERN TRAVEL INVOICE,BD1 3AZ,Admin
Food Standards Agency,Food Standards Agency,24/02/2014,Travel UK ,Internal Audit,Redfern Travel Ltd,73934,287.29,REDFERN TRAVEL INVOICE,BD1 3AZ,Admin
Food Standards Agency,Food Standards Agency,24/02/2014,Travel UK ,Area 5 South West England - Cluster 56,Redfern Travel Ltd,73741,284.25,REDFERN TRAVEL INVOICE,BD1 3AZ,Programme
Food Standards Agency,Food Standards Agency,24/02/2014,Subsistence UK,Operations Assurance - Admin,Redfern Travel Ltd,73741,283.25,REDFERN TRAVEL INVOICE,BD1 3AZ,Admin
Food Standards Agency,Food Standards Agency,24/02/2014,Subsistence - EC,Consumer Protection & Commercial Support,Redfern Travel Ltd,73741,282.49,REDFERN TRAVEL INVOICE,BD1 3AZ,Admin
Food Standards Agency,Food Standards Agency,24/02/2014,Travel UK ,Area 5 South West England - Cluster 51,Redfern Travel Ltd,73934,281.97,REDFERN TRAVEL INVOICE,BD1 3AZ,Programme
Food Standards Agency,Food Standards Agency,24/02/2014,Subsistence - EC,Official Feed & Foods Controls Policy Unit,Redfern Travel Ltd,73741,279.29,REDFERN TRAVEL INVOICE,BD1 3AZ,Admin
Food Standards Agency,Food Standards Agency,04/02/2014,Travel UK ,Area 4 North East England - Cluster 46,Redfern Travel Ltd,72718,277.78,REDFERN TRAVEL INVOICE,BD1 3AZ,Programme
Food Standards Agency,Food Standards Agency,28/02/2014,Travel UK ,Area 1 Scotland - Cluster 13,Redfern Travel Ltd,74261,277.36,REDFERN TRAVEL INVOICE,BD1 3AZ,Programme
Food Standards Agency,Food Standards Agency,12/02/2014,Travel UK ,Animal Feed     ,Redfern Travel Ltd,72906,276.94,REDFERN TRAVEL INVOICE,BD1 3AZ,Admin
Food Standards Agency,Food Standards Agency,24/02/2014,Subsistence - EC,Animal Feed Branch,Redfern Travel Ltd,73934,276.04,REDFERN TRAVEL INVOICE,BD1 3AZ,Admin
Food Standards Agency,Food Standards Agency,24/02/2014,Travel UK ,Area 5 South West England - Cluster 57,Redfern Travel Ltd,73934,272.75,REDFERN TRAVEL INVOICE,BD1 3AZ,Programme
Food Standards Agency,Food Standards Agency,24/02/2014,Subsistence UK,Directorate Support Unit,Redfern Travel Ltd,73741,271.74,REDFERN TRAVEL INVOICE,BD1 3AZ,Admin
Food Standards Agency,Food Standards Agency,24/02/2014,Travel UK ,Area 5 South West England - Cluster 55,Redfern Travel Ltd,73741,270.63,REDFERN TRAVEL INVOICE,BD1 3AZ,Programme
Food Standards Agency,Food Standards Agency,12/02/2014,Travel UK ,Procurement,Redfern Travel Ltd,72906,269.40,REDFERN TRAVEL INVOICE,BD1 3AZ,Admin
Food Standards Agency,Food Standards Agency,04/02/2014,Subsistence UK,Animal Feed     ,Redfern Travel Ltd,72718,269.24,REDFERN TRAVEL INVOICE,BD1 3AZ,Admin
Food Standards Agency,Food Standards Agency,24/02/2014,Travel UK ,Microbiological Food Safety Branch,Redfern Travel Ltd,73741,264.73,REDFERN TRAVEL INVOICE,BD1 3AZ,Admin
Food Standards Agency,Food Standards Agency,24/02/2014,Subsistence - EC,Novel Food Unit,Redfern Travel Ltd,73934,264.69,REDFERN TRAVEL INVOICE,BD1 3AZ,Admin
Food Standards Agency,Food Standards Agency,24/02/2014,Travel UK ,IT Information & Knowledge Management,Redfern Travel Ltd,73741,259.78,REDFERN TRAVEL INVOICE,BD1 3AZ,Admin
Food Standards Agency,Food Standards Agency,24/02/2014,Subsistence - EC,Additives,Redfern Travel Ltd,73934,258.84,REDFERN TRAVEL INVOICE,BD1 3AZ,Admin
Food Standards Agency,Food Standards Agency,28/02/2014,International Travel,Official Feed & Foods Controls Policy Unit,Redfern Travel Ltd,74261,255.90,REDFERN TRAVEL INVOICE,BD1 3AZ,Admin
Food Standards Agency,Food Standards Agency,24/02/2014,Travel UK ,Area 5 South West England - Cluster 57,Redfern Travel Ltd,73741,254.81,REDFERN TRAVEL INVOICE,BD1 3AZ,Programme
Food Standards Agency,Food Standards Agency,12/02/2014,Travel UK ,Area 5 South West England - Cluster 55,Redfern Travel Ltd,72906,252.15,REDFERN TRAVEL INVOICE,BD1 3AZ,Programme
Food Standards Agency,Food Standards Agency,12/02/2014,International Travel,Planning and Performance,Redfern Travel Ltd,72906,251.90,REDFERN TRAVEL INVOICE,BD1 3AZ,Admin
Food Standards Agency,Food Standards Agency,28/02/2014,Travel UK ,Area 3 North West England - Cluster 33,Redfern Travel Ltd,74261,250.88,REDFERN TRAVEL INVOICE,BD1 3AZ,Programme
Food Standards Agency,Food Standards Agency,28/02/2014,Travel UK ,Area 3 North West England - Cluster 32,Redfern Travel Ltd,74261,248.28,REDFERN TRAVEL INVOICE,BD1 3AZ,Programme
Food Standards Agency,Food Standards Agency,28/02/2014,Subsistence UK,Area 5 South West England - Cluster 57,Redfern Travel Ltd,74261,242.60,REDFERN TRAVEL INVOICE,BD1 3AZ,Programme
Food Standards Agency,Food Standards Agency,24/02/2014,Travel UK ,Area 2 Wales - Cluster 23,Redfern Travel Ltd,73934,242.34,REDFERN TRAVEL INVOICE,BD1 3AZ,Programme
Food Standards Agency,Food Standards Agency,24/02/2014,Travel UK ,Area 4 North East England - Cluster 46,Redfern Travel Ltd,73934,232.37,REDFERN TRAVEL INVOICE,BD1 3AZ,Programme
Food Standards Agency,Food Standards Agency,24/02/2014,Travel UK ,Area 4 North East England - Cluster 46,Redfern Travel Ltd,73741,232.30,REDFERN TRAVEL INVOICE,BD1 3AZ,Programme
Food Standards Agency,Food Standards Agency,24/02/2014,Subsistence UK,Operations Local Delivery ,Redfern Travel Ltd,73741,232.24,REDFERN TRAVEL INVOICE,BD1 3AZ,Admin
Food Standards Agency,Food Standards Agency,12/02/2014,Travel UK ,Area 6 South East England - Cluster 64,Redfern Travel Ltd,72906,229.36,REDFERN TRAVEL INVOICE,BD1 3AZ,Programme
Food Standards Agency,Food Standards Agency,24/02/2014,Travel UK ,Area 4 North East England - Cluster 41,Redfern Travel Ltd,73741,228.62,REDFERN TRAVEL INVOICE,BD1 3AZ,Programme
Food Standards Agency,Food Standards Agency,24/02/2014,Subsistence UK,Finance Director & Branch,Redfern Travel Ltd,73741,224.04,REDFERN TRAVEL INVOICE,BD1 3AZ,Admin
Food Standards Agency,Food Standards Agency,12/02/2014,Subsistence UK,Area 5 South West England - Cluster 52,Redfern Travel Ltd,72906,223.62,REDFERN TRAVEL INVOICE,BD1 3AZ,Programme
Food Standards Agency,Food Standards Agency,24/02/2014,Subsistence UK,Area 4 North East England - Cluster 42,Redfern Travel Ltd,73934,220.88,REDFERN TRAVEL INVOICE,BD1 3AZ,Programme
Food Standards Agency,Food Standards Agency,28/02/2014,Travel UK ,Area 1 Scotland - Cluster 11,Redfern Travel Ltd,74261,218.59,REDFERN TRAVEL INVOICE,BD1 3AZ,Programme
Food Standards Agency,Food Standards Agency,24/02/2014,Subsistence UK,Area 2 Wales - Cluster 23,Redfern Travel Ltd,73934,218.12,REDFERN TRAVEL INVOICE,BD1 3AZ,Programme
Food Standards Agency,Food Standards Agency,04/02/2014,Subsistence UK,Operations Assurance - Admin,Redfern Travel Ltd,72718,217.27,REDFERN TRAVEL INVOICE,BD1 3AZ,Admin
Food Standards Agency,Food Standards Agency,24/02/2014,Subsistence UK,Area 4 North East England - Cluster 47,Redfern Travel Ltd,73741,216.84,REDFERN TRAVEL INVOICE,BD1 3AZ,Programme
Food Standards Agency,Food Standards Agency,28/02/2014,Travel UK ,Area 5 South West England - Cluster 53,Redfern Travel Ltd,74261,214.89,REDFERN TRAVEL INVOICE,BD1 3AZ,Programme
Food Standards Agency,Food Standards Agency,24/02/2014,Travel UK ,Legal Branch A,Redfern Travel Ltd,73934,214.67,REDFERN TRAVEL INVOICE,BD1 3AZ,Admin
Food Standards Agency,Food Standards Agency,28/02/2014,Subsistence UK,Area 2 Wales - Cluster 23,Redfern Travel Ltd,74261,214.50,REDFERN TRAVEL INVOICE,BD1 3AZ,Programme
Food Standards Agency,Food Standards Agency,28/02/2014,Travel UK ,Directorate Support Unit,Redfern Travel Ltd,74261,214.33,REDFERN TRAVEL INVOICE,BD1 3AZ,Admin
Food Standards Agency,Food Standards Agency,24/02/2014,Travel UK ,Security & Estates,Redfern Travel Ltd,73741,213.43,REDFERN TRAVEL INVOICE,BD1 3AZ,Admin
Food Standards Agency,Food Standards Agency,12/02/2014,Subsistence UK,Area 1 Scotland - Cluster 15,Redfern Travel Ltd,72906,207.12,REDFERN TRAVEL INVOICE,BD1 3AZ,Programme
Food Standards Agency,Food Standards Agency,24/02/2014,Subsistence UK,Security & Estates,Redfern Travel Ltd,73934,205.56,REDFERN TRAVEL INVOICE,BD1 3AZ,Admin
Food Standards Agency,Food Standards Agency,24/02/2014,International Travel,Contaminants Policy & Strategy Unit,Redfern Travel Ltd,73934,205.29,REDFERN TRAVEL INVOICE,BD1 3AZ,Admin
Food Standards Agency,Food Standards Agency,12/02/2014,International Travel,Legal Branch A,Redfern Travel Ltd,72906,202.80,REDFERN TRAVEL INVOICE,BD1 3AZ,Admin
Food Standards Agency,Food Standards Agency,04/02/2014,Subsistence UK,Area 5 South West England - Cluster 56,Redfern Travel Ltd,72718,202.18,REDFERN TRAVEL INVOICE,BD1 3AZ,Programme
Food Standards Agency,Food Standards Agency,12/02/2014,Subsistence UK,HR,Redfern Travel Ltd,72906,201.43,REDFERN TRAVEL INVOICE,BD1 3AZ,Admin
Food Standards Agency,Food Standards Agency,24/02/2014,Travel UK ,Procurement,Redfern Travel Ltd,73741,201.17,REDFERN TRAVEL INVOICE,BD1 3AZ,Admin
Food Standards Agency,Food Standards Agency,12/02/2014,International Travel,Novel Food Unit,Redfern Travel Ltd,72906,200.90,REDFERN TRAVEL INVOICE,BD1 3AZ,Admin
Food Standards Agency,Food Standards Agency,24/02/2014,International Travel,Novel Food Unit,Redfern Travel Ltd,73741,200.90,REDFERN TRAVEL INVOICE,BD1 3AZ,Admin
Food Standards Agency,Food Standards Agency,24/02/2014,Subsistence UK,Official Feed & Foods Controls Policy Unit,Redfern Travel Ltd,73741,199.56,REDFERN TRAVEL INVOICE,BD1 3AZ,Admin
Food Standards Agency,Food Standards Agency,24/02/2014,Subsistence UK,Hygiene & Microbiology Division HoD,Redfern Travel Ltd,73741,199.56,REDFERN TRAVEL INVOICE,BD1 3AZ,Admin
Food Standards Agency,Food Standards Agency,12/02/2014,Subsistence UK,Comms Directors Office,Redfern Travel Ltd,72906,198.77,REDFERN TRAVEL INVOICE,BD1 3AZ,Admin
Food Standards Agency,Food Standards Agency,12/02/2014,Travel UK ,Non Meat Field Ops,Redfern Travel Ltd,72906,197.92,REDFERN TRAVEL INVOICE,BD1 3AZ,Programme
Food Standards Agency,Food Standards Agency,24/02/2014,Subsistence UK,Area 6 South East England - Cluster 63,Redfern Travel Ltd,73741,196.56,REDFERN TRAVEL INVOICE,BD1 3AZ,Programme
Food Standards Agency,Food Standards Agency,28/02/2014,Travel UK ,Area 6 South East England - Cluster 61,Redfern Travel Ltd,74261,194.76,REDFERN TRAVEL INVOICE,BD1 3AZ,Programme
Food Standards Agency,Food Standards Agency,12/02/2014,Travel UK ,Area 1 Scotland - Cluster 15,Redfern Travel Ltd,72906,193.85,REDFERN TRAVEL INVOICE,BD1 3AZ,Programme
Food Standards Agency,Food Standards Agency,12/02/2014,Travel UK ,Legal Branch A,Redfern Travel Ltd,72906,193.67,REDFERN TRAVEL INVOICE,BD1 3AZ,Admin
Food Standards Agency,Food Standards Agency,04/02/2014,Travel UK ,Chief Scientist,Redfern Travel Ltd,72718,192.56,REDFERN TRAVEL INVOICE,BD1 3AZ,Admin
Food Standards Agency,Food Standards Agency,24/02/2014,Travel UK ,Area 2 Wales - Cluster 21,Redfern Travel Ltd,73741,188.55,REDFERN TRAVEL INVOICE,BD1 3AZ,Programme
Food Standards Agency,Food Standards Agency,24/02/2014,Travel UK ,FSA Board,Redfern Travel Ltd,73934,185.51,REDFERN TRAVEL INVOICE,BD1 3AZ,Admin
Food Standards Agency,Food Standards Agency,28/02/2014,International Travel,Allergens,Redfern Travel Ltd,74261,184.85,REDFERN TRAVEL INVOICE,BD1 3AZ,Admin
Food Standards Agency,Food Standards Agency,12/02/2014,Travel UK ,Procurement,Redfern Travel Ltd,72906,183.55,REDFERN TRAVEL INVOICE,BD1 3AZ,Admin
Food Standards Agency,Food Standards Agency,04/02/2014,Travel UK ,Area 4 North East England - Cluster 44,Redfern Travel Ltd,72718,181.58,REDFERN TRAVEL INVOICE,BD1 3AZ,Programme
Food Standards Agency,Food Standards Agency,12/02/2014,International Travel,Contaminants HoD,Redfern Travel Ltd,72906,180.90,REDFERN TRAVEL INVOICE,BD1 3AZ,Admin
Food Standards Agency,Food Standards Agency,24/02/2014,International Travel,Additives,Redfern Travel Ltd,73934,180.90,REDFERN TRAVEL INVOICE,BD1 3AZ,Admin
Food Standards Agency,Food Standards Agency,24/02/2014,International Travel,FSA Board,Redfern Travel Ltd,73934,179.95,REDFERN TRAVEL INVOICE,BD1 3AZ,Admin
Food Standards Agency,Food Standards Agency,24/02/2014,International Travel,Planning and Performance,Redfern Travel Ltd,73934,179.95,REDFERN TRAVEL INVOICE,BD1 3AZ,Admin
Food Standards Agency,Food Standards Agency,12/02/2014,Subsistence UK,Directorate Support Unit,Redfern Travel Ltd,72906,177.12,REDFERN TRAVEL INVOICE,BD1 3AZ,Admin
Food Standards Agency,Food Standards Agency,24/02/2014,International Travel,Allergens,Redfern Travel Ltd,73934,176.80,REDFERN TRAVEL INVOICE,BD1 3AZ,Admin
Food Standards Agency,Food Standards Agency,04/02/2014,International Subsistence,Hygiene & Microbiology Division HoD,Redfern Travel Ltd,72718,176.31,REDFERN TRAVEL INVOICE,BD1 3AZ,Admin
Food Standards Agency,Food Standards Agency,24/02/2014,Travel UK ,Area 6 South East England - Cluster 65,Redfern Travel Ltd,73741,175.80,REDFERN TRAVEL INVOICE,BD1 3AZ,Programme
Food Standards Agency,Food Standards Agency,24/02/2014,Subsistence UK,Directorate Support Unit,Redfern Travel Ltd,73934,175.56,REDFERN TRAVEL INVOICE,BD1 3AZ,Admin
Food Standards Agency,Food Standards Agency,24/02/2014,Subsistence UK,Security & Estates,Redfern Travel Ltd,73741,175.12,REDFERN TRAVEL INVOICE,BD1 3AZ,Admin
Food Standards Agency,Food Standards Agency,28/02/2014,Travel UK ,IT HoD,Redfern Travel Ltd,74261,175.04,REDFERN TRAVEL INVOICE,BD1 3AZ,Admin
Food Standards Agency,Food Standards Agency,24/02/2014,Travel UK ,Area 2 Wales - Cluster 21,Redfern Travel Ltd,73934,174.25,REDFERN TRAVEL INVOICE,BD1 3AZ,Programme
Food Standards Agency,Food Standards Agency,04/02/2014,Travel UK ,Area 4 North East England - Cluster 48,Redfern Travel Ltd,72718,172.85,REDFERN TRAVEL INVOICE,BD1 3AZ,Programme
Food Standards Agency,Food Standards Agency,28/02/2014,Subsistence UK,Area 5 South West England - Cluster 55,Redfern Travel Ltd,74261,171.56,REDFERN TRAVEL INVOICE,BD1 3AZ,Programme
Food Standards Agency,Food Standards Agency,12/02/2014,Subsistence UK,Area 5 South West England - Cluster 57,Redfern Travel Ltd,72906,170.62,REDFERN TRAVEL INVOICE,BD1 3AZ,Programme
Food Standards Agency,Food Standards Agency,04/02/2014,Travel UK ,Directorate Support Unit,Redfern Travel Ltd,72718,169.50,REDFERN TRAVEL INVOICE,BD1 3AZ,Admin
Food Standards Agency,Food Standards Agency,24/02/2014,Travel UK ,Procurement,Redfern Travel Ltd,73934,168.68,REDFERN TRAVEL INVOICE,BD1 3AZ,Admin
Food Standards Agency,Food Standards Agency,24/02/2014,Travel UK ,Area 4 North East England - Cluster 44,Redfern Travel Ltd,73741,167.37,REDFERN TRAVEL INVOICE,BD1 3AZ,Programme
Food Standards Agency,Food Standards Agency,28/02/2014,Travel UK ,Chief Executive & Private Office,Redfern Travel Ltd,74261,167.17,REDFERN TRAVEL INVOICE,BD1 3AZ,Admin
Food Standards Agency,Food Standards Agency,04/02/2014,Travel UK ,Area 5 South West England - Cluster 53,Redfern Travel Ltd,72718,166.93,REDFERN TRAVEL INVOICE,BD1 3AZ,Programme
Food Standards Agency,Food Standards Agency,04/02/2014,Travel UK ,Procurement,Redfern Travel Ltd,72718,166.82,REDFERN TRAVEL INVOICE,BD1 3AZ,Admin
Food Standards Agency,Food Standards Agency,24/02/2014,Travel UK ,Area 4 North East England - Cluster 48,Redfern Travel Ltd,73934,166.78,REDFERN TRAVEL INVOICE,BD1 3AZ,Programme
Food Standards Agency,Food Standards Agency,24/02/2014,Travel UK ,Area 6 South East England - Cluster 61,Redfern Travel Ltd,73741,166.15,REDFERN TRAVEL INVOICE,BD1 3AZ,Programme
Food Standards Agency,Food Standards Agency,24/02/2014,International Travel,Contaminants Policy & Strategy Unit,Redfern Travel Ltd,73934,165.90,REDFERN TRAVEL INVOICE,BD1 3AZ,Admin
Food Standards Agency,Food Standards Agency,24/02/2014,International Travel,Animal Feed Branch,Redfern Travel Ltd,73741,165.90,REDFERN TRAVEL INVOICE,BD1 3AZ,Admin
Food Standards Agency,Food Standards Agency,28/02/2014,International Travel,Consumer Protection & Commercial Support,Redfern Travel Ltd,74261,165.90,REDFERN TRAVEL INVOICE,BD1 3AZ,Admin
Food Standards Agency,Food Standards Agency,28/02/2014,International Travel,Contaminants Policy & Strategy Unit,Redfern Travel Ltd,74261,165.90,REDFERN TRAVEL INVOICE,BD1 3AZ,Admin
Food Standards Agency,Food Standards Agency,24/02/2014,Subsistence UK,Planning and Performance,Redfern Travel Ltd,73741,165.56,REDFERN TRAVEL INVOICE,BD1 3AZ,Admin
Food Standards Agency,Food Standards Agency,24/02/2014,Travel UK ,Non Meat Field Ops,Redfern Travel Ltd,73741,164.93,REDFERN TRAVEL INVOICE,BD1 3AZ,Programme
Food Standards Agency,Food Standards Agency,24/02/2014,Travel UK ,Area 3 North West England - Cluster 31,Redfern Travel Ltd,73741,164.60,REDFERN TRAVEL INVOICE,BD1 3AZ,Programme
Food Standards Agency,Food Standards Agency,04/02/2014,International Travel,Chief Scientist,Redfern Travel Ltd,72718,163.00,REDFERN TRAVEL INVOICE,BD1 3AZ,Admin
Food Standards Agency,Food Standards Agency,28/02/2014,Subsistence UK,Comms Directors Office,Redfern Travel Ltd,74261,162.88,REDFERN TRAVEL INVOICE,BD1 3AZ,Admin
Food Standards Agency,Food Standards Agency,24/02/2014,Travel UK ,Chair & Deputy Chair,Redfern Travel Ltd,73741,161.95,REDFERN TRAVEL INVOICE,BD1 3AZ,Admin
Food Standards Agency,Food Standards Agency,28/02/2014,Travel UK ,Procurement,Redfern Travel Ltd,74261,161.46,REDFERN TRAVEL INVOICE,BD1 3AZ,Admin
Food Standards Agency,Food Standards Agency,04/02/2014,Travel UK ,Area 1 Scotland - Cluster 13,Redfern Travel Ltd,72718,159.27,REDFERN TRAVEL INVOICE,BD1 3AZ,Programme
Food Standards Agency,Food Standards Agency,28/02/2014,Subsistence UK,Area 4 North East England - Cluster 47,Redfern Travel Ltd,74261,159.12,REDFERN TRAVEL INVOICE,BD1 3AZ,Programme
Food Standards Agency,Food Standards Agency,28/02/2014,Subsistence UK,Area 5 South West England - Cluster 54,Redfern Travel Ltd,74261,159.12,REDFERN TRAVEL INVOICE,BD1 3AZ,Programme
Food Standards Agency,Food Standards Agency,04/02/2014,Travel UK ,Area 2 Wales - Cluster 21,Redfern Travel Ltd,72718,158.59,REDFERN TRAVEL INVOICE,BD1 3AZ,Programme
Food Standards Agency,Food Standards Agency,24/02/2014,Travel UK ,Area 1 Scotland - Cluster 13,Redfern Travel Ltd,73934,158.49,REDFERN TRAVEL INVOICE,BD1 3AZ,Programme
Food Standards Agency,Food Standards Agency,24/02/2014,Subsistence UK,Allergens,Redfern Travel Ltd,73741,157.12,REDFERN TRAVEL INVOICE,BD1 3AZ,Admin
Food Standards Agency,Food Standards Agency,24/02/2014,Travel UK ,Meat & Hygiene & TSE Policy Branch,Redfern Travel Ltd,73741,156.77,REDFERN TRAVEL INVOICE,BD1 3AZ,Admin
Food Standards Agency,Food Standards Agency,12/02/2014,International Travel,Contaminants Policy & Strategy Unit,Redfern Travel Ltd,72906,156.70,REDFERN TRAVEL INVOICE,BD1 3AZ,Admin
Food Standards Agency,Food Standards Agency,24/02/2014,Travel UK ,Area 5 South West England - Cluster 51,Redfern Travel Ltd,73741,156.35,REDFERN TRAVEL INVOICE,BD1 3AZ,Programme
Food Standards Agency,Food Standards Agency,04/02/2014,Travel UK ,Area 6 South East England - Cluster 64,Redfern Travel Ltd,72718,155.28,REDFERN TRAVEL INVOICE,BD1 3AZ,Programme
Food Standards Agency,Food Standards Agency,12/02/2014,Travel UK ,IT HoD,Redfern Travel Ltd,72906,154.67,REDFERN TRAVEL INVOICE,BD1 3AZ,Admin
Food Standards Agency,Food Standards Agency,04/02/2014,Subsistence UK,Investigations,Redfern Travel Ltd,72718,154.65,REDFERN TRAVEL INVOICE,BD1 3AZ,Admin
Food Standards Agency,Food Standards Agency,12/02/2014,Travel UK ,Security & Estates,Redfern Travel Ltd,72906,153.70,REDFERN TRAVEL INVOICE,BD1 3AZ,Admin
Food Standards Agency,Food Standards Agency,12/02/2014,Subsistence UK,Contaminants Policy & Strategy Unit,Redfern Travel Ltd,72906,152.25,REDFERN TRAVEL INVOICE,BD1 3AZ,Admin
Food Standards Agency,Food Standards Agency,04/02/2014,Subsistence UK,Official Feed & Foods Controls Policy Unit,Redfern Travel Ltd,72718,151.56,REDFERN TRAVEL INVOICE,BD1 3AZ,Admin
Food Standards Agency,Food Standards Agency,24/02/2014,Subsistence UK,Area 5 South West England - Cluster 57,Redfern Travel Ltd,73741,151.56,REDFERN TRAVEL INVOICE,BD1 3AZ,Programme
Food Standards Agency,Food Standards Agency,28/02/2014,Subsistence UK,Planning and Performance,Redfern Travel Ltd,74261,150.89,REDFERN TRAVEL INVOICE,BD1 3AZ,Admin
Food Standards Agency,Food Standards Agency,04/02/2014,Travel UK ,Better Regulations & Sustainable Development,Redfern Travel Ltd,72718,150.16,REDFERN TRAVEL INVOICE,BD1 3AZ,Admin
Food Standards Agency,Food Standards Agency,28/02/2014,Travel UK ,Area 4 North East England - Cluster 41,Redfern Travel Ltd,74261,148.07,REDFERN TRAVEL INVOICE,BD1 3AZ,Programme
Food Standards Agency,Food Standards Agency,04/02/2014,Subsistence UK,Area 4 North East England - Cluster 46,Redfern Travel Ltd,72718,146.64,REDFERN TRAVEL INVOICE,BD1 3AZ,Programme
Food Standards Agency,Food Standards Agency,04/02/2014,Subsistence UK,Chair & Deputy Chair,Redfern Travel Ltd,72718,146.56,REDFERN TRAVEL INVOICE,BD1 3AZ,Admin
Food Standards Agency,Food Standards Agency,04/02/2014,Travel UK ,Delivery,Redfern Travel Ltd,72718,146.42,REDFERN TRAVEL INVOICE,BD1 3AZ,Admin
Food Standards Agency,Food Standards Agency,04/02/2014,Travel UK ,Microbiological Food Safety Branch,Redfern Travel Ltd,72718,145.46,REDFERN TRAVEL INVOICE,BD1 3AZ,Admin
Food Standards Agency,Food Standards Agency,24/02/2014,Subsistence UK,Internal Audit,Redfern Travel Ltd,73741,145.08,REDFERN TRAVEL INVOICE,BD1 3AZ,Admin
Food Standards Agency,Food Standards Agency,28/02/2014,Subsistence - EC,Area 5 South West England - Cluster 57,Redfern Travel Ltd,74261,145.08,REDFERN TRAVEL INVOICE,BD1 3AZ,Programme
Food Standards Agency,Food Standards Agency,28/02/2014,Subsistence UK,Area 6 South East England - Cluster 63,Redfern Travel Ltd,74261,145.08,REDFERN TRAVEL INVOICE,BD1 3AZ,Programme
Food Standards Agency,Food Standards Agency,24/02/2014,Travel UK ,Directorate Support Unit,Redfern Travel Ltd,73934,144.97,REDFERN TRAVEL INVOICE,BD1 3AZ,Admin
Food Standards Agency,Food Standards Agency,24/02/2014,Travel UK ,Area 4 North East England - Cluster 41,Redfern Travel Ltd,73934,144.09,REDFERN TRAVEL INVOICE,BD1 3AZ,Programme
Food Standards Agency,Food Standards Agency,24/02/2014,Travel UK ,Area 6 South East England - Cluster 66,Redfern Travel Ltd,73741,144.04,REDFERN TRAVEL INVOICE,BD1 3AZ,Programme
Food Standards Agency,Food Standards Agency,04/02/2014,Travel UK ,Area 4 North East England - Cluster 41,Redfern Travel Ltd,72718,143.02,REDFERN TRAVEL INVOICE,BD1 3AZ,Programme
Food Standards Agency,Food Standards Agency,24/02/2014,Subsistence UK,Operations Local Delivery ,Redfern Travel Ltd,73934,141.90,REDFERN TRAVEL INVOICE,BD1 3AZ,Admin
Food Standards Agency,Food Standards Agency,24/02/2014,Travel UK ,IT HoD,Redfern Travel Ltd,73934,141.77,REDFERN TRAVEL INVOICE,BD1 3AZ,Admin
Food Standards Agency,Food Standards Agency,12/02/2014,Travel UK ,Chief Scientist,Redfern Travel Ltd,72906,141.63,REDFERN TRAVEL INVOICE,BD1 3AZ,Admin
Food Standards Agency,Food Standards Agency,24/02/2014,Travel UK ,Chair & Deputy Chair,Redfern Travel Ltd,73934,141.49,REDFERN TRAVEL INVOICE,BD1 3AZ,Admin
Food Standards Agency,Food Standards Agency,24/02/2014,International Subsistence,Contaminants Policy & Strategy Unit,Redfern Travel Ltd,73934,139.56,REDFERN TRAVEL INVOICE,BD1 3AZ,Admin
Food Standards Agency,Food Standards Agency,04/02/2014,Subsistence UK,IT HoD,Redfern Travel Ltd,72718,138.86,REDFERN TRAVEL INVOICE,BD1 3AZ,Admin
Food Standards Agency,Food Standards Agency,24/02/2014,Subsistence UK,Approvals & Veterinary Advice,Redfern Travel Ltd,73934,135.56,REDFERN TRAVEL INVOICE,BD1 3AZ,Programme
Food Standards Agency,Food Standards Agency,12/02/2014,Subsistence UK,European & International Strategy,Redfern Travel Ltd,72906,131.56,REDFERN TRAVEL INVOICE,BD1 3AZ,Admin
Food Standards Agency,Food Standards Agency,28/02/2014,Subsistence UK,Security & Estates,Redfern Travel Ltd,74261,131.56,REDFERN TRAVEL INVOICE,BD1 3AZ,Admin
Food Standards Agency,Food Standards Agency,04/02/2014,Travel UK ,Area 5 South West England - Cluster 57,Redfern Travel Ltd,72718,130.41,REDFERN TRAVEL INVOICE,BD1 3AZ,Programme
Food Standards Agency,Food Standards Agency,28/02/2014,International Travel,Chief Executive & Private Office,Redfern Travel Ltd,74261,130.25,REDFERN TRAVEL INVOICE,BD1 3AZ,Admin
Food Standards Agency,Food Standards Agency,12/02/2014,Travel UK ,Comms Directors Office,Redfern Travel Ltd,72906,130.10,REDFERN TRAVEL INVOICE,BD1 3AZ,Admin
Food Standards Agency,Food Standards Agency,24/02/2014,International Travel,Comms Directors Office,Redfern Travel Ltd,73934,128.40,REDFERN TRAVEL INVOICE,BD1 3AZ,Admin
Food Standards Agency,Food Standards Agency,04/02/2014,Subsistence UK,Planning and Performance,Redfern Travel Ltd,72718,128.11,REDFERN TRAVEL INVOICE,BD1 3AZ,Admin
Food Standards Agency,Food Standards Agency,28/02/2014,Subsistence UK,Operations Local Delivery ,Redfern Travel Ltd,74261,126.56,REDFERN TRAVEL INVOICE,BD1 3AZ,Admin
Food Standards Agency,Food Standards Agency,04/02/2014,Subsistence UK,FSA Board,Redfern Travel Ltd,72718,126.55,REDFERN TRAVEL INVOICE,BD1 3AZ,Admin
Food Standards Agency,Food Standards Agency,28/02/2014,Subsistence UK,Consumer Protection & Commercial Support,Redfern Travel Ltd,74261,126.55,REDFERN TRAVEL INVOICE,BD1 3AZ,Admin
Food Standards Agency,Food Standards Agency,12/02/2014,Travel UK ,Area 1 Scotland - Cluster 11,Redfern Travel Ltd,72906,126.05,REDFERN TRAVEL INVOICE,BD1 3AZ,Programme
Food Standards Agency,Food Standards Agency,12/02/2014,Subsistence UK,Finance Director & Branch,Redfern Travel Ltd,72906,123.84,REDFERN TRAVEL INVOICE,BD1 3AZ,Admin
Food Standards Agency,Food Standards Agency,24/02/2014,Travel UK ,Hygiene & Microbiology Division HoD,Redfern Travel Ltd,73741,123.59,REDFERN TRAVEL INVOICE,BD1 3AZ,Admin
Food Standards Agency,Food Standards Agency,12/02/2014,Travel UK ,Official Feed & Foods Controls Policy Unit,Redfern Travel Ltd,72906,121.46,REDFERN TRAVEL INVOICE,BD1 3AZ,Admin
Food Standards Agency,Food Standards Agency,24/02/2014,Travel UK ,Investigations,Redfern Travel Ltd,73741,120.30,REDFERN TRAVEL INVOICE,BD1 3AZ,Admin
Food Standards Agency,Food Standards Agency,12/02/2014,Subsistence UK,Security & Estates,Redfern Travel Ltd,72906,119.56,REDFERN TRAVEL INVOICE,BD1 3AZ,Admin
Food Standards Agency,Food Standards Agency,24/02/2014,Travel UK ,Area 6 South East England - Cluster 66,Redfern Travel Ltd,73934,119.48,REDFERN TRAVEL INVOICE,BD1 3AZ,Programme
Food Standards Agency,Food Standards Agency,12/02/2014,Subsistence UK,Area 3 North West England - Cluster 33,Redfern Travel Ltd,72906,118.77,REDFERN TRAVEL INVOICE,BD1 3AZ,Programme
Food Standards Agency,Food Standards Agency,24/02/2014,Travel UK ,Area 3 North West England - Cluster 33,Redfern Travel Ltd,73934,118.71,REDFERN TRAVEL INVOICE,BD1 3AZ,Programme
Food Standards Agency,Food Standards Agency,24/02/2014,Travel UK ,Chief Executive & Private Office,Redfern Travel Ltd,73741,116.81,REDFERN TRAVEL INVOICE,BD1 3AZ,Admin
Food Standards Agency,Food Standards Agency,12/02/2014,Travel UK ,Operations Assurance,Redfern Travel Ltd,72906,115.10,REDFERN TRAVEL INVOICE,BD1 3AZ,Programme
Food Standards Agency,Food Standards Agency,24/02/2014,Subsistence - EC,Additives,Redfern Travel Ltd,73741,114.78,REDFERN TRAVEL INVOICE,BD1 3AZ,Admin
Food Standards Agency,Food Standards Agency,24/02/2014,Travel UK ,Area 1 Scotland - Cluster 15,Redfern Travel Ltd,73934,114.75,REDFERN TRAVEL INVOICE,BD1 3AZ,Programme
Food Standards Agency,Food Standards Agency,24/02/2014,Travel UK ,Area 5 South West England - Cluster 53,Redfern Travel Ltd,73934,114.41,REDFERN TRAVEL INVOICE,BD1 3AZ,Programme
Food Standards Agency,Food Standards Agency,24/02/2014,International Travel,Comms Directors Office,Redfern Travel Ltd,73934,113.90,REDFERN TRAVEL INVOICE,BD1 3AZ,Admin
Food Standards Agency,Food Standards Agency,12/02/2014,Travel UK ,Area 6 South East England - Cluster 62,Redfern Travel Ltd,72906,113.73,REDFERN TRAVEL INVOICE,BD1 3AZ,Programme
Food Standards Agency,Food Standards Agency,24/02/2014,Travel UK ,Hygiene & Microbiology Division HoD,Redfern Travel Ltd,73934,112.59,REDFERN TRAVEL INVOICE,BD1 3AZ,Admin
Food Standards Agency,Food Standards Agency,04/02/2014,International Travel,Consumer Protection & Commercial Support,Redfern Travel Ltd,72718,110.90,REDFERN TRAVEL INVOICE,BD1 3AZ,Admin
Food Standards Agency,Food Standards Agency,28/02/2014,International Travel,Comms Directors Office,Redfern Travel Ltd,74261,110.90,REDFERN TRAVEL INVOICE,BD1 3AZ,Admin
Food Standards Agency,Food Standards Agency,12/02/2014,Travel UK ,Area 5 South West England - Cluster 54,Redfern Travel Ltd,72906,108.88,REDFERN TRAVEL INVOICE,BD1 3AZ,Programme
Food Standards Agency,Food Standards Agency,04/02/2014,Travel UK ,Contaminants Policy & Strategy Unit,Redfern Travel Ltd,72718,108.11,REDFERN TRAVEL INVOICE,BD1 3AZ,Admin
Food Standards Agency,Food Standards Agency,24/02/2014,Travel UK ,Delivery,Redfern Travel Ltd,73741,105.00,REDFERN TRAVEL INVOICE,BD1 3AZ,Admin
Food Standards Agency,Food Standards Agency,24/02/2014,Travel UK ,IT Information & Knowledge Management,Redfern Travel Ltd,73934,103.75,REDFERN TRAVEL INVOICE,BD1 3AZ,Admin
Food Standards Agency,Food Standards Agency,28/02/2014,Travel UK ,Official Controls & Enforcement Strategy,Redfern Travel Ltd,74261,103.75,REDFERN TRAVEL INVOICE,BD1 3AZ,Admin
Food Standards Agency,Food Standards Agency,24/02/2014,Subsistence UK,Area 1 Scotland - Cluster 13,Redfern Travel Ltd,73934,102.78,REDFERN TRAVEL INVOICE,BD1 3AZ,Programme
Food Standards Agency,Food Standards Agency,24/02/2014,Subsistence UK,Area 1 Scotland - Cluster 15,Redfern Travel Ltd,73934,102.78,REDFERN TRAVEL INVOICE,BD1 3AZ,Programme
Food Standards Agency,Food Standards Agency,04/02/2014,International Travel,Chief Executive & Private Office,Redfern Travel Ltd,72718,100.91,REDFERN TRAVEL INVOICE,BD1 3AZ,Admin
Food Standards Agency,Food Standards Agency,24/02/2014,Subsistence UK,Consumer Protection & Commercial Support,Redfern Travel Ltd,73934,100.56,REDFERN TRAVEL INVOICE,BD1 3AZ,Admin
Food Standards Agency,Food Standards Agency,14/02/2014,Office machinery: hire,Security & Estates,G4s Integrated Services (Uk) Ltd,M15626,100.00,G4S MONTHLY CONTRACT CHARGES JANUARY 2014,S81 7QF,Admin
Food Standards Agency,Food Standards Agency,24/02/2014,Travel UK ,EU Regulatory Reform Branch,Redfern Travel Ltd,73741,99.68,REDFERN TRAVEL INVOICE,BD1 3AZ,Admin
Food Standards Agency,Food Standards Agency,12/02/2014,Travel UK ,Area 4 North East England - Cluster 41,Redfern Travel Ltd,72906,99.52,REDFERN TRAVEL INVOICE,BD1 3AZ,Programme
Food Standards Agency,Food Standards Agency,04/02/2014,Travel UK ,FSA Board,Redfern Travel Ltd,72718,99.12,REDFERN TRAVEL INVOICE,BD1 3AZ,Admin
Food Standards Agency,Food Standards Agency,24/02/2014,Travel UK ,Area 5 South West England - Cluster 54,Redfern Travel Ltd,73934,98.98,REDFERN TRAVEL INVOICE,BD1 3AZ,Programme
Food Standards Agency,Food Standards Agency,24/02/2014,Subsistence UK,Procurement,Redfern Travel Ltd,73741,95.28,REDFERN TRAVEL INVOICE,BD1 3AZ,Admin
Food Standards Agency,Food Standards Agency,04/02/2014,Travel UK ,Area 6 South East England - Cluster 61,Redfern Travel Ltd,72718,95.11,REDFERN TRAVEL INVOICE,BD1 3AZ,Programme
Food Standards Agency,Food Standards Agency,24/02/2014,Travel UK ,Contaminants HoD,Redfern Travel Ltd,73934,95.07,REDFERN TRAVEL INVOICE,BD1 3AZ,Admin
Food Standards Agency,Food Standards Agency,12/02/2014,Travel UK ,Area 2 Wales - Cluster 22,Redfern Travel Ltd,72906,92.39,REDFERN TRAVEL INVOICE,BD1 3AZ,Programme
Food Standards Agency,Food Standards Agency,24/02/2014,Travel UK ,Chemical Risk Assessment Unit,Redfern Travel Ltd,73934,92.37,REDFERN TRAVEL INVOICE,BD1 3AZ,Admin
Food Standards Agency,Food Standards Agency,04/02/2014,Travel UK ,Area 4 North East England - Cluster 47,Redfern Travel Ltd,72718,90.68,REDFERN TRAVEL INVOICE,BD1 3AZ,Programme
Food Standards Agency,Food Standards Agency,12/02/2014,Subsistence UK,Non Meat Field Ops,Redfern Travel Ltd,72906,90.56,REDFERN TRAVEL INVOICE,BD1 3AZ,Programme
Food Standards Agency,Food Standards Agency,12/02/2014,Travel UK ,Area 4 North East England - Cluster 48,Redfern Travel Ltd,72906,89.96,REDFERN TRAVEL INVOICE,BD1 3AZ,Programme
Food Standards Agency,Food Standards Agency,24/02/2014,Subsistence UK,Analysis & Research Branch,Redfern Travel Ltd,73934,89.56,REDFERN TRAVEL INVOICE,BD1 3AZ,Admin
Food Standards Agency,Food Standards Agency,04/02/2014,Subsistence UK,Area 5 South West England - Cluster 52,Redfern Travel Ltd,72718,88.56,REDFERN TRAVEL INVOICE,BD1 3AZ,Programme
Food Standards Agency,Food Standards Agency,12/02/2014,Subsistence UK,Procurement,Redfern Travel Ltd,72907,88.56,REDFERN TRAVEL INVOICE,BD1 3AZ,Admin
Food Standards Agency,Food Standards Agency,12/02/2014,Subsistence UK,Area 2 Wales - Cluster 23,Redfern Travel Ltd,72906,88.12,REDFERN TRAVEL INVOICE,BD1 3AZ,Programme
Food Standards Agency,Food Standards Agency,12/02/2014,Travel UK ,European & International Strategy,Redfern Travel Ltd,72906,87.99,REDFERN TRAVEL INVOICE,BD1 3AZ,Admin
Food Standards Agency,Food Standards Agency,04/02/2014,Travel UK ,IT Information & Knowledge Management,Redfern Travel Ltd,72718,87.26,REDFERN TRAVEL INVOICE,BD1 3AZ,Admin
Food Standards Agency,Food Standards Agency,24/02/2014,Subsistence - EC,Novel Food Unit,Redfern Travel Ltd,73741,85.22,REDFERN TRAVEL INVOICE,BD1 3AZ,Admin
Food Standards Agency,Food Standards Agency,24/02/2014,Subsistence UK,Area 4 North East England - Cluster 46,Redfern Travel Ltd,73741,85.21,REDFERN TRAVEL INVOICE,BD1 3AZ,Programme
Food Standards Agency,Food Standards Agency,24/02/2014,Subsistence UK,Chemical Risk Assessment Unit,Redfern Travel Ltd,73741,85.21,REDFERN TRAVEL INVOICE,BD1 3AZ,Admin
Food Standards Agency,Food Standards Agency,24/02/2014,Travel UK ,Area 6 South East England - Cluster 62,Redfern Travel Ltd,73741,84.63,REDFERN TRAVEL INVOICE,BD1 3AZ,Programme
Food Standards Agency,Food Standards Agency,28/02/2014,Subsistence UK,Area 5 South West England - Cluster 53,Redfern Travel Ltd,74261,84.06,REDFERN TRAVEL INVOICE,BD1 3AZ,Programme
Food Standards Agency,Food Standards Agency,28/02/2014,Travel UK ,Area 4 North East England - Cluster 44,Redfern Travel Ltd,74261,83.64,REDFERN TRAVEL INVOICE,BD1 3AZ,Programme
Food Standards Agency,Food Standards Agency,12/02/2014,Subsistence UK,Area 6 South East England - Cluster 64,Redfern Travel Ltd,72906,83.56,REDFERN TRAVEL INVOICE,BD1 3AZ,Programme
Food Standards Agency,Food Standards Agency,28/02/2014,Travel UK ,Area 5 South West England - Cluster 52,Redfern Travel Ltd,74261,82.91,REDFERN TRAVEL INVOICE,BD1 3AZ,Programme
Food Standards Agency,Food Standards Agency,24/02/2014,International Travel,Contaminants Policy & Strategy Unit,Redfern Travel Ltd,73741,82.37,REDFERN TRAVEL INVOICE,BD1 3AZ,Admin
Food Standards Agency,Food Standards Agency,24/02/2014,Travel UK ,Contaminants HoD,Redfern Travel Ltd,73741,81.60,REDFERN TRAVEL INVOICE,BD1 3AZ,Admin
Food Standards Agency,Food Standards Agency,24/02/2014,Subsistence - EC,Contaminants HoD,Redfern Travel Ltd,73934,80.87,REDFERN TRAVEL INVOICE,BD1 3AZ,Admin
Food Standards Agency,Food Standards Agency,24/02/2014,Subsistence UK,Area 5 South West England - Cluster 56,Redfern Travel Ltd,73741,80.40,REDFERN TRAVEL INVOICE,BD1 3AZ,Programme
Food Standards Agency,Food Standards Agency,24/02/2014,Travel UK ,Legal Branch A,Redfern Travel Ltd,73741,80.18,REDFERN TRAVEL INVOICE,BD1 3AZ,Admin
Food Standards Agency,Food Standards Agency,24/02/2014,Subsistence UK,Area 4 North East England - Cluster 41,Redfern Travel Ltd,73741,78.56,REDFERN TRAVEL INVOICE,BD1 3AZ,Programme
Food Standards Agency,Food Standards Agency,28/02/2014,Travel UK ,Security & Estates,Redfern Travel Ltd,74261,78.53,REDFERN TRAVEL INVOICE,BD1 3AZ,Admin
Food Standards Agency,Food Standards Agency,12/02/2014,Travel UK ,Area 4 North East England - Cluster 45,Redfern Travel Ltd,72906,78.32,REDFERN TRAVEL INVOICE,BD1 3AZ,Programme
Food Standards Agency,Food Standards Agency,24/02/2014,Travel UK ,Area 4 North East England - Cluster 47,Redfern Travel Ltd,73741,78.17,REDFERN TRAVEL INVOICE,BD1 3AZ,Programme
Food Standards Agency,Food Standards Agency,24/02/2014,Subsistence UK,Finance Director & Branch,Redfern Travel Ltd,73934,78.12,REDFERN TRAVEL INVOICE,BD1 3AZ,Admin
Food Standards Agency,Food Standards Agency,24/02/2014,Travel UK ,Additives,Redfern Travel Ltd,73934,77.56,REDFERN TRAVEL INVOICE,BD1 3AZ,Admin
Food Standards Agency,Food Standards Agency,12/02/2014,Travel UK ,Consumer Protection & Commercial Support,Redfern Travel Ltd,72906,76.69,REDFERN TRAVEL INVOICE,BD1 3AZ,Admin
Food Standards Agency,Food Standards Agency,24/02/2014,Subsistence UK,Investigations,Redfern Travel Ltd,73741,75.72,REDFERN TRAVEL INVOICE,BD1 3AZ,Admin
Food Standards Agency,Food Standards Agency,24/02/2014,Subsistence UK,Area 4 North East England - Cluster 48,Redfern Travel Ltd,73741,74.24,REDFERN TRAVEL INVOICE,BD1 3AZ,Programme
Food Standards Agency,Food Standards Agency,04/02/2014,Subsistence UK,Area 5 South West England - Cluster 55,Redfern Travel Ltd,72718,74.06,REDFERN TRAVEL INVOICE,BD1 3AZ,Programme
Food Standards Agency,Food Standards Agency,24/02/2014,Subsistence UK,Area 5 South West England - Cluster 54,Redfern Travel Ltd,73934,73.37,REDFERN TRAVEL INVOICE,BD1 3AZ,Programme
Food Standards Agency,Food Standards Agency,04/02/2014,Subsistence UK,Area 3 North West England - Cluster 34,Redfern Travel Ltd,72718,73.32,REDFERN TRAVEL INVOICE,BD1 3AZ,Programme
Food Standards Agency,Food Standards Agency,04/02/2014,Subsistence UK,Area 4 North East England - Cluster 42,Redfern Travel Ltd,72718,73.32,REDFERN TRAVEL INVOICE,BD1 3AZ,Programme
Food Standards Agency,Food Standards Agency,04/02/2014,Subsistence UK,Internal Audit,Redfern Travel Ltd,72718,73.32,REDFERN TRAVEL INVOICE,BD1 3AZ,Admin
Food Standards Agency,Food Standards Agency,12/02/2014,Subsistence UK,Area 4 North East England - Cluster 42,Redfern Travel Ltd,72906,73.32,REDFERN TRAVEL INVOICE,BD1 3AZ,Programme
Food Standards Agency,Food Standards Agency,12/02/2014,Subsistence UK,Area 4 North East England - Cluster 46,Redfern Travel Ltd,72906,73.32,REDFERN TRAVEL INVOICE,BD1 3AZ,Programme
Food Standards Agency,Food Standards Agency,24/02/2014,Subsistence UK,Area 2 Wales - Cluster 22,Redfern Travel Ltd,73934,73.32,REDFERN TRAVEL INVOICE,BD1 3AZ,Programme
Food Standards Agency,Food Standards Agency,24/02/2014,Subsistence UK,Area 4 North East England - Cluster 42,Redfern Travel Ltd,73741,73.32,REDFERN TRAVEL INVOICE,BD1 3AZ,Programme
Food Standards Agency,Food Standards Agency,24/02/2014,Subsistence UK,Area 5 South West England - Cluster 55,Redfern Travel Ltd,73934,73.32,REDFERN TRAVEL INVOICE,BD1 3AZ,Programme
Food Standards Agency,Food Standards Agency,24/02/2014,Subsistence UK,Area 6 South East England - Cluster 62,Redfern Travel Ltd,73934,73.32,REDFERN TRAVEL INVOICE,BD1 3AZ,Programme
Food Standards Agency,Food Standards Agency,28/02/2014,Subsistence UK,Area 5 South West England - Cluster 52,Redfern Travel Ltd,74261,73.32,REDFERN TRAVEL INVOICE,BD1 3AZ,Programme
Food Standards Agency,Food Standards Agency,24/02/2014,Travel UK ,Area 3 North West England - Cluster 36,Redfern Travel Ltd,73741,72.99,REDFERN TRAVEL INVOICE,BD1 3AZ,Programme
Food Standards Agency,Food Standards Agency,04/02/2014,Subsistence UK,Area 1 Scotland - Cluster 11,Redfern Travel Ltd,72718,72.56,REDFERN TRAVEL INVOICE,BD1 3AZ,Programme
Food Standards Agency,Food Standards Agency,24/02/2014,Travel UK ,Area 1 Scotland - Cluster 11,Redfern Travel Ltd,73741,71.20,REDFERN TRAVEL INVOICE,BD1 3AZ,Programme
Food Standards Agency,Food Standards Agency,28/02/2014,International Travel,Chief Scientist,Redfern Travel Ltd,74261,70.90,REDFERN TRAVEL INVOICE,BD1 3AZ,Admin
Food Standards Agency,Food Standards Agency,12/02/2014,Travel UK ,Area 4 North East England - Cluster 46,Redfern Travel Ltd,72906,70.56,REDFERN TRAVEL INVOICE,BD1 3AZ,Programme
Food Standards Agency,Food Standards Agency,24/02/2014,Subsistence UK,Area 6 South East England - Cluster 64,Redfern Travel Ltd,73934,70.56,REDFERN TRAVEL INVOICE,BD1 3AZ,Programme
Food Standards Agency,Food Standards Agency,04/02/2014,Travel UK ,Area 6 South East England - Cluster 62,Redfern Travel Ltd,72718,70.49,REDFERN TRAVEL INVOICE,BD1 3AZ,Programme
Food Standards Agency,Food Standards Agency,24/02/2014,Travel UK ,Area 5 South West England - Cluster 52,Redfern Travel Ltd,73934,70.13,REDFERN TRAVEL INVOICE,BD1 3AZ,Programme
Food Standards Agency,Food Standards Agency,24/02/2014,Subsistence UK,Contaminants Policy & Strategy Unit,Redfern Travel Ltd,73934,69.56,REDFERN TRAVEL INVOICE,BD1 3AZ,Admin
Food Standards Agency,Food Standards Agency,12/02/2014,Subsistence UK,Area 3 North West England - Cluster 34,Redfern Travel Ltd,72906,68.56,REDFERN TRAVEL INVOICE,BD1 3AZ,Programme
Food Standards Agency,Food Standards Agency,04/02/2014,Subsistence UK,Area 4 North East England - Cluster 44,Redfern Travel Ltd,72718,67.56,REDFERN TRAVEL INVOICE,BD1 3AZ,Programme
Food Standards Agency,Food Standards Agency,24/02/2014,Subsistence UK,Area 2 Wales - Cluster 23,Redfern Travel Ltd,73741,67.56,REDFERN TRAVEL INVOICE,BD1 3AZ,Programme
Food Standards Agency,Food Standards Agency,24/02/2014,Travel UK ,Area 6 South East England - Cluster 64,Redfern Travel Ltd,73741,66.78,REDFERN TRAVEL INVOICE,BD1 3AZ,Programme
Food Standards Agency,Food Standards Agency,04/02/2014,Subsistence UK,Approvals & Veterinary Advice,Redfern Travel Ltd,72718,66.56,REDFERN TRAVEL INVOICE,BD1 3AZ,Programme
Food Standards Agency,Food Standards Agency,24/02/2014,Subsistence UK,Standards Branch,Redfern Travel Ltd,73934,66.56,REDFERN TRAVEL INVOICE,BD1 3AZ,Admin
Food Standards Agency,Food Standards Agency,12/02/2014,Subsistence UK,Legal Branch A,Redfern Travel Ltd,72906,65.56,REDFERN TRAVEL INVOICE,BD1 3AZ,Admin
Food Standards Agency,Food Standards Agency,24/02/2014,Subsistence UK,Area 2 Wales - Cluster 22,Redfern Travel Ltd,73741,63.56,REDFERN TRAVEL INVOICE,BD1 3AZ,Programme
Food Standards Agency,Food Standards Agency,24/02/2014,Travel UK ,Area 2 Wales - Cluster 23,Redfern Travel Ltd,73741,63.48,REDFERN TRAVEL INVOICE,BD1 3AZ,Programme
Food Standards Agency,Food Standards Agency,04/02/2014,Travel UK ,Area 1 Scotland - Cluster 15,Redfern Travel Ltd,72718,61.01,REDFERN TRAVEL INVOICE,BD1 3AZ,Programme
Food Standards Agency,Food Standards Agency,04/02/2014,Travel UK ,Allergens,Redfern Travel Ltd,72718,59.13,REDFERN TRAVEL INVOICE,BD1 3AZ,Admin
Food Standards Agency,Food Standards Agency,12/02/2014,Subsistence UK,Consumer Protection & Commercial Support,Redfern Travel Ltd,72906,57.41,REDFERN TRAVEL INVOICE,BD1 3AZ,Admin
Food Standards Agency,Food Standards Agency,04/02/2014,Travel UK ,Hygiene & Microbiology Division HoD,Redfern Travel Ltd,72718,57.38,REDFERN TRAVEL INVOICE,BD1 3AZ,Admin
Food Standards Agency,Food Standards Agency,24/02/2014,Travel UK ,Area 3 North West England - Cluster 32,Redfern Travel Ltd,73934,56.98,REDFERN TRAVEL INVOICE,BD1 3AZ,Programme
Food Standards Agency,Food Standards Agency,04/02/2014,Travel UK ,Non Meat Field Ops,Redfern Travel Ltd,72718,56.84,REDFERN TRAVEL INVOICE,BD1 3AZ,Programme
Food Standards Agency,Food Standards Agency,24/02/2014,Subsistence UK,Area 3 North West England - Cluster 33,Redfern Travel Ltd,73741,56.56,REDFERN TRAVEL INVOICE,BD1 3AZ,Programme
Food Standards Agency,Food Standards Agency,28/02/2014,Subsistence UK,Contaminants Policy & Strategy Unit,Redfern Travel Ltd,74261,56.56,REDFERN TRAVEL INVOICE,BD1 3AZ,Admin
Food Standards Agency,Food Standards Agency,24/02/2014,International Travel,Internal Audit,Redfern Travel Ltd,73934,55.94,REDFERN TRAVEL INVOICE,BD1 3AZ,Admin
Food Standards Agency,Food Standards Agency,28/02/2014,Travel UK ,Area 6 South East England - Cluster 66,Redfern Travel Ltd,74261,55.92,REDFERN TRAVEL INVOICE,BD1 3AZ,Programme
Food Standards Agency,Food Standards Agency,24/02/2014,Travel UK ,Area 4 North East England - Cluster 44,Redfern Travel Ltd,73934,55.76,REDFERN TRAVEL INVOICE,BD1 3AZ,Programme
Food Standards Agency,Food Standards Agency,24/02/2014,Travel UK ,Area 5 South West England - Cluster 56,Redfern Travel Ltd,73934,55.34,REDFERN TRAVEL INVOICE,BD1 3AZ,Programme
Food Standards Agency,Food Standards Agency,28/02/2014,Travel UK ,Contaminants Policy & Strategy Unit,Redfern Travel Ltd,74261,53.89,REDFERN TRAVEL INVOICE,BD1 3AZ,Admin
Food Standards Agency,Food Standards Agency,12/02/2014,Subsistence UK,Chemical Risk Assessment Unit,Redfern Travel Ltd,72906,52.56,REDFERN TRAVEL INVOICE,BD1 3AZ,Admin
Food Standards Agency,Food Standards Agency,12/02/2014,Travel UK ,Area 6 South East England - Cluster 61,Redfern Travel Ltd,72906,51.57,REDFERN TRAVEL INVOICE,BD1 3AZ,Programme
Food Standards Agency,Food Standards Agency,28/02/2014,Travel UK ,Investigations,Redfern Travel Ltd,74261,50.40,REDFERN TRAVEL INVOICE,BD1 3AZ,Admin
Food Standards Agency,Food Standards Agency,28/02/2014,Subsistence UK,Area 4 North East England - Cluster 41,Redfern Travel Ltd,74261,49.52,REDFERN TRAVEL INVOICE,BD1 3AZ,Programme
Food Standards Agency,Food Standards Agency,28/02/2014,Subsistence UK,Area 4 North East England - Cluster 46,Redfern Travel Ltd,74261,49.52,REDFERN TRAVEL INVOICE,BD1 3AZ,Programme
Food Standards Agency,Food Standards Agency,24/02/2014,Subsistence - EC,Chief Scientist,Redfern Travel Ltd,73934,49.07,REDFERN TRAVEL INVOICE,BD1 3AZ,Admin
Food Standards Agency,Food Standards Agency,04/02/2014,Travel UK ,Chief Executive & Private Office,Redfern Travel Ltd,72718,48.91,REDFERN TRAVEL INVOICE,BD1 3AZ,Admin
Food Standards Agency,Food Standards Agency,28/02/2014,Travel UK ,Area 4 North East England - Cluster 47,Redfern Travel Ltd,74261,47.77,REDFERN TRAVEL INVOICE,BD1 3AZ,Programme
Food Standards Agency,Food Standards Agency,24/02/2014,Travel UK ,Area 6 South East England - Cluster 61,Redfern Travel Ltd,73934,46.21,REDFERN TRAVEL INVOICE,BD1 3AZ,Programme
Food Standards Agency,Food Standards Agency,24/02/2014,Travel UK ,Allergens,Redfern Travel Ltd,73741,45.74,REDFERN TRAVEL INVOICE,BD1 3AZ,Admin
Food Standards Agency,Food Standards Agency,04/02/2014,Subsistence UK,Contaminants HoD,Redfern Travel Ltd,72718,44.51,REDFERN TRAVEL INVOICE,BD1 3AZ,Admin
Food Standards Agency,Food Standards Agency,28/02/2014,Travel UK ,Area 6 South East England - Cluster 65,Redfern Travel Ltd,74261,42.63,REDFERN TRAVEL INVOICE,BD1 3AZ,Programme
Food Standards Agency,Food Standards Agency,12/02/2014,Subsistence UK,Area 1 Scotland - Cluster 11,Redfern Travel Ltd,72906,38.43,REDFERN TRAVEL INVOICE,BD1 3AZ,Programme
Food Standards Agency,Food Standards Agency,12/02/2014,Travel UK ,Contaminants HoD,Redfern Travel Ltd,72906,37.69,REDFERN TRAVEL INVOICE,BD1 3AZ,Admin
Food Standards Agency,Food Standards Agency,24/02/2014,Travel UK ,Animal Feed     ,Redfern Travel Ltd,73934,37.04,REDFERN TRAVEL INVOICE,BD1 3AZ,Admin
Food Standards Agency,Food Standards Agency,04/02/2014,Travel UK ,Area 6 South East England - Cluster 66,Redfern Travel Ltd,72718,32.69,REDFERN TRAVEL INVOICE,BD1 3AZ,Programme
Food Standards Agency,Food Standards Agency,28/02/2014,Subsistence UK,Legal Branch A,Redfern Travel Ltd,74261,32.56,REDFERN TRAVEL INVOICE,BD1 3AZ,Admin
Food Standards Agency,Food Standards Agency,12/02/2014,Travel UK ,Area 3 North West England - Cluster 32,Redfern Travel Ltd,72906,32.54,REDFERN TRAVEL INVOICE,BD1 3AZ,Programme
Food Standards Agency,Food Standards Agency,04/02/2014,Travel UK ,Contaminants HoD,Redfern Travel Ltd,72718,31.97,REDFERN TRAVEL INVOICE,BD1 3AZ,Admin
Food Standards Agency,Food Standards Agency,24/02/2014,Travel UK ,Area 4 North East England - Cluster 45,Redfern Travel Ltd,73741,30.31,REDFERN TRAVEL INVOICE,BD1 3AZ,Programme
Food Standards Agency,Food Standards Agency,12/02/2014,Travel UK ,Contaminants Policy & Strategy Unit,Redfern Travel Ltd,72906,29.06,REDFERN TRAVEL INVOICE,BD1 3AZ,Admin
Food Standards Agency,Food Standards Agency,12/02/2014,Travel UK ,Area 4 North East England - Cluster 44,Redfern Travel Ltd,72906,27.88,REDFERN TRAVEL INVOICE,BD1 3AZ,Programme
Food Standards Agency,Food Standards Agency,28/02/2014,Travel UK ,Area 1 Scotland - Cluster 12,Redfern Travel Ltd,74261,27.59,REDFERN TRAVEL INVOICE,BD1 3AZ,Programme
Food Standards Agency,Food Standards Agency,28/02/2014,International Travel,Consumer Protection & Commercial Support,Redfern Travel Ltd,74261,24.02,REDFERN TRAVEL INVOICE,BD1 3AZ,Admin
Food Standards Agency,Food Standards Agency,28/02/2014,Travel UK ,Allergens,Redfern Travel Ltd,74261,22.66,REDFERN TRAVEL INVOICE,BD1 3AZ,Admin
Food Standards Agency,Food Standards Agency,04/02/2014,Travel UK ,Area 3 North West England - Cluster 33,Redfern Travel Ltd,72718,20.31,REDFERN TRAVEL INVOICE,BD1 3AZ,Programme
Food Standards Agency,Food Standards Agency,20/02/2014,Utilities,Security & Estates,E D F Energy,EDF0164,19.55,ENERGY CHARGES - ACCT 12717310 -  1-31 JAN 2014,PL3 5XQ,Admin
Food Standards Agency,Food Standards Agency,24/02/2014,International Travel,Consumer Protection & Commercial Support,Redfern Travel Ltd,73934,18.39,REDFERN TRAVEL INVOICE,BD1 3AZ,Admin
Food Standards Agency,Food Standards Agency,28/02/2014,Subsistence UK,Procurement,Redfern Travel Ltd,74261,18.30,REDFERN TRAVEL INVOICE,BD1 3AZ,Admin
Food Standards Agency,Food Standards Agency,28/02/2014,Travel UK ,Animal Feed Branch,Redfern Travel Ltd,74261,17.13,REDFERN TRAVEL INVOICE,BD1 3AZ,Admin
Food Standards Agency,Food Standards Agency,24/02/2014,Travel UK ,Area 5 South West England - Cluster 52,Redfern Travel Ltd,73741,13.33,REDFERN TRAVEL INVOICE,BD1 3AZ,Programme
Food Standards Agency,Food Standards Agency,04/02/2014,International Travel,Analysis & Research Branch,Redfern Travel Ltd,72718,12.96,REDFERN TRAVEL INVOICE,BD1 3AZ,Admin
Food Standards Agency,Food Standards Agency,28/02/2014,International Travel,Analysis & Research Branch,Redfern Travel Ltd,74261,12.96,REDFERN TRAVEL INVOICE,BD1 3AZ,Admin
Food Standards Agency,Food Standards Agency,28/02/2014,Subsistence - EC,Additives,Redfern Travel Ltd,74261,12.21,REDFERN TRAVEL INVOICE,BD1 3AZ,Admin
Food Standards Agency,Food Standards Agency,04/02/2014,Travel UK ,Area 5 South West England - Cluster 54,Redfern Travel Ltd,72718,11.06,REDFERN TRAVEL INVOICE,BD1 3AZ,Programme
Food Standards Agency,Food Standards Agency,12/02/2014,International Travel,Finance Director & Branch,Redfern Travel Ltd,72906,11.02,REDFERN TRAVEL INVOICE,BD1 3AZ,Admin
Food Standards Agency,Food Standards Agency,24/02/2014,International Travel,Contaminants HoD,Redfern Travel Ltd,73741,10.63,REDFERN TRAVEL INVOICE,BD1 3AZ,Admin
Food Standards Agency,Food Standards Agency,04/02/2014,International Travel,Legal Branch A,Redfern Travel Ltd,72718,6.46,REDFERN TRAVEL INVOICE,BD1 3AZ,Admin
Food Standards Agency,Food Standards Agency,28/02/2014,Subsistence - EC,Animal Feed Branch,Redfern Travel Ltd,74261,4.68,REDFERN TRAVEL INVOICE,BD1 3AZ,Admin
Food Standards Agency,Food Standards Agency,04/02/2014,Subsistence UK,Area 6 South East England - Cluster 65,Redfern Travel Ltd,72718,3.12,REDFERN TRAVEL INVOICE,BD1 3AZ,Programme
Food Standards Agency,Food Standards Agency,12/02/2014,Subsistence - EC,Food Hygiene Policy Branch,Redfern Travel Ltd,72907,3.12,REDFERN TRAVEL INVOICE,BD1 3AZ,Admin
Food Standards Agency,Food Standards Agency,28/02/2014,Subsistence UK,HR,Redfern Travel Ltd,74261,3.12,REDFERN TRAVEL INVOICE,BD1 3AZ,Admin
Food Standards Agency,Food Standards Agency,12/02/2014,Car hire expenses (short term),Operations Assurance,Redfern Travel Ltd,72906,2.40,REDFERN TRAVEL INVOICE,BD1 3AZ,Programme
Food Standards Agency,Food Standards Agency,12/02/2014,Subsistence UK,Area 2 Wales - Cluster 21,Redfern Travel Ltd,72906,2.28,REDFERN TRAVEL INVOICE,BD1 3AZ,Programme
Food Standards Agency,Food Standards Agency,04/02/2014,Subsistence UK,Contaminants Policy & Strategy Unit,Redfern Travel Ltd,72718,1.56,REDFERN TRAVEL INVOICE,BD1 3AZ,Admin
Food Standards Agency,Food Standards Agency,04/02/2014,Subsistence UK,Area 5 South West England - Cluster 54,Redfern Travel Ltd,72718,1.56,REDFERN TRAVEL INVOICE,BD1 3AZ,Programme
Food Standards Agency,Food Standards Agency,04/02/2014,Subsistence - EC,Novel Food Unit,Redfern Travel Ltd,72718,1.56,REDFERN TRAVEL INVOICE,BD1 3AZ,Admin
Food Standards Agency,Food Standards Agency,04/02/2014,Subsistence UK,Microbiological Food Safety Branch,Redfern Travel Ltd,72718,1.56,REDFERN TRAVEL INVOICE,BD1 3AZ,Admin
Food Standards Agency,Food Standards Agency,04/02/2014,Subsistence - EC,EU Regulatory Reform Branch,Redfern Travel Ltd,72718,1.56,REDFERN TRAVEL INVOICE,BD1 3AZ,Admin
Food Standards Agency,Food Standards Agency,04/02/2014,Subsistence - EC,Food Hygiene Policy Branch,Redfern Travel Ltd,72718,1.56,REDFERN TRAVEL INVOICE,BD1 3AZ,Admin
Food Standards Agency,Food Standards Agency,04/02/2014,Subsistence - EC,Additives,Redfern Travel Ltd,72718,1.56,REDFERN TRAVEL INVOICE,BD1 3AZ,Admin
Food Standards Agency,Food Standards Agency,04/02/2014,Subsistence - EC,Procurement,Redfern Travel Ltd,72718,1.56,REDFERN TRAVEL INVOICE,BD1 3AZ,Admin
Food Standards Agency,Food Standards Agency,12/02/2014,Subsistence UK,Area 1 Scotland - Cluster 13,Redfern Travel Ltd,72906,1.56,REDFERN TRAVEL INVOICE,BD1 3AZ,Programme
Food Standards Agency,Food Standards Agency,12/02/2014,Subsistence - EC,Operational Delivery,Redfern Travel Ltd,72906,1.56,REDFERN TRAVEL INVOICE,BD1 3AZ,Programme
Food Standards Agency,Food Standards Agency,12/02/2014,Subsistence - EC,Non Meat Field Ops,Redfern Travel Ltd,72906,1.56,REDFERN TRAVEL INVOICE,BD1 3AZ,Programme
Food Standards Agency,Food Standards Agency,12/02/2014,Subsistence UK,Operations Assurance - Admin,Redfern Travel Ltd,72906,1.56,REDFERN TRAVEL INVOICE,BD1 3AZ,Admin
Food Standards Agency,Food Standards Agency,12/02/2014,Subsistence UK,EU Regulatory Reform Branch,Redfern Travel Ltd,72906,1.56,REDFERN TRAVEL INVOICE,BD1 3AZ,Admin
Food Standards Agency,Food Standards Agency,12/02/2014,Subsistence - EC,Additives,Redfern Travel Ltd,72906,1.56,REDFERN TRAVEL INVOICE,BD1 3AZ,Admin
Food Standards Agency,Food Standards Agency,24/02/2014,Subsistence UK,Area 3 North West England - Cluster 36,Redfern Travel Ltd,73741,1.56,REDFERN TRAVEL INVOICE,BD1 3AZ,Programme
Food Standards Agency,Food Standards Agency,24/02/2014,Subsistence - EC,Analysis & Research Branch,Redfern Travel Ltd,73741,1.56,REDFERN TRAVEL INVOICE,BD1 3AZ,Admin
Food Standards Agency,Food Standards Agency,24/02/2014,International Subsistence,Comms Directors Office,Redfern Travel Ltd,73934,1.56,REDFERN TRAVEL INVOICE,BD1 3AZ,Admin
Food Standards Agency,Food Standards Agency,24/02/2014,Subsistence - EC,Contaminants HoD,Redfern Travel Ltd,73741,1.56,REDFERN TRAVEL INVOICE,BD1 3AZ,Admin
Food Standards Agency,Food Standards Agency,24/02/2014,Subsistence - EC,Chemical Risk Assessment Unit,Redfern Travel Ltd,73934,1.56,REDFERN TRAVEL INVOICE,BD1 3AZ,Admin
Food Standards Agency,Food Standards Agency,24/02/2014,Subsistence - EC,Better Regulations & Sustainable Development,Redfern Travel Ltd,73741,1.56,REDFERN TRAVEL INVOICE,BD1 3AZ,Admin
Food Standards Agency,Food Standards Agency,28/02/2014,Subsistence - EC,Chief Scientist,Redfern Travel Ltd,74261,1.56,REDFERN TRAVEL INVOICE,BD1 3AZ,Admin
Food Standards Agency,Food Standards Agency,24/02/2014,Subsistence UK,FSA Board,Redfern Travel Ltd,73741,1.04,REDFERN TRAVEL INVOICE,BD1 3AZ,Admin
Food Standards Agency,Food Standards Agency,20/02/2014,Rent & management charges - Outside London,Scotland Admin Costs,C N R International UK Ltd,SMH1402011a,1.00,"Various accommodation charges - Rent 11/11/13 - 14/05/14, Electricity Aug 13 - Dec 13",AB11 6NJ,Admin
Food Standards Agency,Food Standards Agency,24/02/2014,Subsistence - EC,FSA Board,Redfern Travel Ltd,73741,0.52,REDFERN TRAVEL INVOICE,BD1 3AZ,Admin
Food Standards Agency,Food Standards Agency,24/02/2014,Subsistence - EC,Legal Branch A,Redfern Travel Ltd,73741,0.52,REDFERN TRAVEL INVOICE,BD1 3AZ,Admin
Food Standards Agency,Food Standards Agency,24/02/2014,Subsistence - EC,Planning and Performance,Redfern Travel Ltd,73741,0.52,REDFERN TRAVEL INVOICE,BD1 3AZ,Admin
Food Standards Agency,Food Standards Agency,20/02/2014,Rent & management charges - Outside London,Scotland Admin Costs,C N R International UK Ltd,SMH1402011a,0.20,"Various accommodation charges - Rent 11/11/13 - 14/05/14, Electricity Aug 13 - Dec 13",AB11 6NJ,Admin
Food Standards Agency,Food Standards Agency,14/02/2014,Security,Security & Estates,G4s Integrated Services (Uk) Ltd,M15626,0.01,G4S MONTHLY CONTRACT CHARGES JANUARY 2014,S81 7QF,Admin
Food Standards Agency,Food Standards Agency,14/02/2014,Project Programme expenditure,Operations Local Delivery ,LGC Ltd,50289137,-0.01,PO 416200 FA0137 MILESTONES 3 & 4,TW11 0LY,Programme
Food Standards Agency,Food Standards Agency,24/02/2014,Travel UK ,Area 6 South East England - Cluster 64,Redfern Travel Ltd,73934,-0.43,REDFERN TRAVEL INVOICE,BD1 3AZ,Programme
Food Standards Agency,Food Standards Agency,28/02/2014,Travel UK ,Internal Audit,Redfern Travel Ltd,74261,-0.88,REDFERN TRAVEL INVOICE,BD1 3AZ,Admin
Food Standards Agency,Food Standards Agency,28/02/2014,Travel UK ,Consumer Protection & Commercial Support,Redfern Travel Ltd,74261,-1.23,REDFERN TRAVEL INVOICE,BD1 3AZ,Admin
Food Standards Agency,Food Standards Agency,24/02/2014,Travel UK ,Standards Branch,Redfern Travel Ltd,73934,-25.70,REDFERN TRAVEL INVOICE,BD1 3AZ,Admin
Food Standards Agency,Food Standards Agency,28/02/2014,Travel UK ,Area 6 South East England - Cluster 64,Redfern Travel Ltd,74261,-25.89,REDFERN TRAVEL INVOICE,BD1 3AZ,Programme
Food Standards Agency,Food Standards Agency,04/02/2014,Travel UK ,Approvals & Veterinary Advice,Redfern Travel Ltd,72718,-29.73,REDFERN TRAVEL INVOICE,BD1 3AZ,Programme
Food Standards Agency,Food Standards Agency,24/02/2014,Travel UK ,Area 5 South West England - Cluster 53,Redfern Travel Ltd,73741,-31.66,REDFERN TRAVEL INVOICE,BD1 3AZ,Programme
Food Standards Agency,Food Standards Agency,24/02/2014,Travel UK ,Area 3 North West England - Cluster 35,Redfern Travel Ltd,73741,-32.78,REDFERN TRAVEL INVOICE,BD1 3AZ,Programme
Food Standards Agency,Food Standards Agency,28/02/2014,Travel UK ,Area 3 North West England - Cluster 34,Redfern Travel Ltd,74261,-33.65,REDFERN TRAVEL INVOICE,BD1 3AZ,Programme
Food Standards Agency,Food Standards Agency,24/02/2014,Travel UK ,Official Feed & Foods Controls Policy Unit,Redfern Travel Ltd,73934,-38.01,REDFERN TRAVEL INVOICE,BD1 3AZ,Admin
Food Standards Agency,Food Standards Agency,28/02/2014,Travel UK ,Official Feed & Foods Controls Policy Unit,Redfern Travel Ltd,74261,-59.92,REDFERN TRAVEL INVOICE,BD1 3AZ,Admin
Food Standards Agency,Food Standards Agency,24/02/2014,Subsistence UK,Procurement,Redfern Travel Ltd,73934,-88.00,REDFERN TRAVEL INVOICE,BD1 3AZ,Admin
Food Standards Agency,Food Standards Agency,04/02/2014,Travel UK ,Standards Branch,Redfern Travel Ltd,72718,-98.98,REDFERN TRAVEL INVOICE,BD1 3AZ,Admin
Food Standards Agency,Food Standards Agency,28/02/2014,Travel UK ,Area 4 North East England - Cluster 48,Redfern Travel Ltd,74261,-113.72,REDFERN TRAVEL INVOICE,BD1 3AZ,Programme
Food Standards Agency,Food Standards Agency,28/02/2014,Travel UK ,Area 6 South East England - Cluster 63,Redfern Travel Ltd,74261,-138.48,REDFERN TRAVEL INVOICE,BD1 3AZ,Programme
Food Standards Agency,Food Standards Agency,28/02/2014,Travel UK ,Area 4 North East England - Cluster 43,Redfern Travel Ltd,74261,-145.20,REDFERN TRAVEL INVOICE,BD1 3AZ,Programme
Food Standards Agency,Food Standards Agency,28/02/2014,Travel UK ,Area 2 Wales - Cluster 23,Redfern Travel Ltd,74261,-220.03,REDFERN TRAVEL INVOICE,BD1 3AZ,Programme
Food Standards Agency,Food Standards Agency,12/02/2014,Subsistence UK,Operations Local Delivery ,Redfern Travel Ltd,72906,-255.89,REDFERN TRAVEL INVOICE,BD1 3AZ,Admin
Food Standards Agency,Food Standards Agency,28/02/2014,Travel UK ,Area 3 North West England - Cluster 35,Redfern Travel Ltd,74261,-596.10,REDFERN TRAVEL INVOICE,BD1 3AZ,Programme
"Date Run: 12-MAR-14 09.07.24 AM --- Company Code : '17'  '18', Payment Start Date : '01-FEB-2014' , Payment End Date : '28-FEB-2014'",,,,,,,,,,
